{"text_format":"1","workbook":"xlsx","n_sheets":2,"sheets":["Форма","Списки"],"not_rendered":{"charts":0,"images":0,"macros":1,"external_links":0,"defined_names":6,"comments":0,"pivot_tables":0},"unopened":[],"bounds":{"document_bytes":16777216,"sheet_cells":100000,"rows_first":2000,"rows_last":500,"rows_between":2000,"halvings":0,"cell_chars":16384,"cell_head_chars":4096},"cells_cut":0,"cells_raw":0,"read":"whole","date_system":"1900"}

{"sheet":"Форма","index":0,"n_rows":28,"n_cols":249,"rows_kept":28,"cut":false,"hidden":false,"merged":[[3,4,8,7],[1,4,2,7]]}
[]
[null,"**********",null,null,{"$f":"C5","v":"покупатель31"}]
[]
[null,"менеджер4",false,null,{"$f":"IFERROR(VLOOKUP(C5,Списки!E2:F500,2,0),\"\")","v":"Заказ раз в 21 дней; \nПолучение оборотки каждый пятница; \nЧто-то каждые 23 дней; \nЕщё что-то 24 числа каждого месяца"}]
[null,null,{"$f":"INDEX(B1:B200,MAX(ROW(B1:B200)*ISTEXT(B1:B200)))","v":"покупатель31"}]
[null,"Дата начала периода","2016-01-01"]
[null,"Дата окончания периода"]
[]
[null,"Шаг временной шкалы (дней/клетку)",1]
[]
[]
[]
[]
["№","Клиент","Этап","Начало этапа","Длительность, раб.дн.","Конец этапа","% выполнения","Задержка, раб.дн.",{"$f":"C6","v":"2016-01-01"},{"$f":"I14+$C$9","v":"2016-01-02"},"2016-01-03","2016-01-04","2016-01-05","2016-01-06","2016-01-07","2016-01-08","2016-01-09","2016-01-10","2016-01-11","2016-01-12","2016-01-13","2016-01-14","2016-01-15","2016-01-16","2016-01-17","2016-01-18","2016-01-19","2016-01-20","2016-01-21","2016-01-22","2016-01-23","2016-01-24","2016-01-25","2016-01-26","2016-01-27","2016-01-28","2016-01-29","2016-01-30","2016-01-31","2016-02-01","2016-02-02",{"$f":"AO14+$C$9","v":"2016-02-03"},"2016-02-04","2016-02-05","2016-02-06","2016-02-07","2016-02-08","2016-02-09","2016-02-10","2016-02-11","2016-02-12","2016-02-13","2016-02-14","2016-02-15","2016-02-16","2016-02-17","2016-02-18","2016-02-19","2016-02-20","2016-02-21","2016-02-22","2016-02-23","2016-02-24","2016-02-25","2016-02-26","2016-02-27","2016-02-28","2016-02-29","2016-03-01","2016-03-02","2016-03-03","2016-03-04","2016-03-05",{"$f":"BU14+$C$9","v":"2016-03-06"},"2016-03-07","2016-03-08","2016-03-09","2016-03-10","2016-03-11","2016-03-12","2016-03-13","2016-03-14","2016-03-15","2016-03-16","2016-03-17","2016-03-18","2016-03-19","2016-03-20","2016-03-21","2016-03-22",{"$f":"CL14+$C$9","v":"2016-03-23"},"2016-03-24","2016-03-25","2016-03-26","2016-03-27","2016-03-28","2016-03-29","2016-03-30","2016-03-31","2016-04-01","2016-04-02","2016-04-03","2016-04-04","2016-04-05","2016-04-06","2016-04-07","2016-04-08","2016-04-09","2016-04-10","2016-04-11","2016-04-12","2016-04-13","2016-04-14","2016-04-15","2016-04-16","2016-04-17","2016-04-18","2016-04-19","2016-04-20","2016-04-21","2016-04-22","2016-04-23","2016-04-24","2016-04-25","2016-04-26","2016-04-27","2016-04-28","2016-04-29","2016-04-30","2016-05-01","2016-05-02","2016-05-03","2016-05-04","2016-05-05","2016-05-06","2016-05-07","2016-05-08","2016-05-09","2016-05-10","2016-05-11","2016-05-12","2016-05-13","2016-05-14","2016-05-15","2016-05-16","2016-05-17","2016-05-18","2016-05-19","2016-05-20","2016-05-21","2016-05-22","2016-05-23","2016-05-24","2016-05-25",{"$f":"EX14+$C$9","v":"2016-05-26"},"2016-05-27","2016-05-28","2016-05-29","2016-05-30","2016-05-31","2016-06-01","2016-06-02","2016-06-03","2016-06-04","2016-06-05","2016-06-06","2016-06-07","2016-06-08","2016-06-09","2016-06-10","2016-06-11","2016-06-12",{"$f":"FP14+$C$9","v":"2016-06-13"},"2016-06-14","2016-06-15","2016-06-16","2016-06-17","2016-06-18","2016-06-19","2016-06-20","2016-06-21","2016-06-22","2016-06-23","2016-06-24","2016-06-25","2016-06-26","2016-06-27","2016-06-28","2016-06-29","2016-06-30","2016-07-01","2016-07-02","2016-07-03","2016-07-04","2016-07-05","2016-07-06","2016-07-07","2016-07-08","2016-07-09","2016-07-10","2016-07-11","2016-07-12","2016-07-13","2016-07-14","2016-07-15","2016-07-16","2016-07-17","2016-07-18","2016-07-19","2016-07-20","2016-07-21","2016-07-22","2016-07-23","2016-07-24","2016-07-25","2016-07-26","2016-07-27","2016-07-28","2016-07-29","2016-07-30","2016-07-31","2016-08-01","2016-08-02","2016-08-03","2016-08-04","2016-08-05","2016-08-06","2016-08-07","2016-08-08","2016-08-09","2016-08-10","2016-08-11","2016-08-12","2016-08-13","2016-08-14","2016-08-15",{"$f":"IB14+$C$9","v":"2016-08-16"},"2016-08-17","2016-08-18","2016-08-19","2016-08-20","2016-08-21","2016-08-22","2016-08-23","2016-08-24","2016-08-25","2016-08-26","2016-08-27","2016-08-28"]
[1,"покупатель31"]
[2]
[3]
[4]
[5]
[6]
[7]
[8]
[9]
[10]
[11]
[12]
[13]
[14]

{"sheet":"Списки","index":1,"n_rows":217,"n_cols":26,"rows_kept":217,"cut":false,"hidden":false,"merged":[]}
["Праздники",null,"Координатор","код_м","ПокупательГК(Общее_Название)",null,"Заказ раз в ёё дней","Получение оборотки каждый ёё","Что-то каждые ёё дней","Ещё что-то ёё числа каждого месяца",null,"Клиент",null,null,{"$f":"Форма!B4","v":"менеджер4"},null,"Статья",null,"Статья","1-й этап","2-й этап","3-й этап","4-й этап","5-й этап","6-й этап","7-й этап"]
["2015-01-01"," ","менеджер1",{"$f":"IF(ISERR(SEARCH($O$1,C2)),999,IF(SUMPRODUCT((E$1:E1=E2)*(D$1:D1<999))>0,999,ROW()))","v":999},"покупатель1",{"$f":"IF(G2=0,\"\",SUBSTITUTE(G$1,\"ёё\",G2)&шб)&IF(H2=0,\"\",SUBSTITUTE(H$1,\"ёё\",H2)&шб)&IF(I2=0,\"\",SUBSTITUTE(I$1,\"ёё\",I2)&шб)&IF(J2=0,\"\",SUBSTITUTE(J$1,\"ёё\",J2))","v":"Заказ раз в 7 дней; \nПолучение оборотки каждый среда; \nЧто-то каждые 9 дней; \nЕщё что-то 10 числа каждого месяца"},7,{"$f":"TEXT(TODAY()+ROW(),\"ДДДД\")","v":"среда"},9,10," ","Все",{"$f":"--(LEN(L2)>0)","v":1}," ","менеджер1"," "," "," ","Заказ","Выслать прайс","Получить заказ","Обработать","Согласовать","Отправить на отгрузку"]
["2015-01-02"," ","менеджер2",{"$f":"IF(ISERR(SEARCH($O$1,C3)),999,IF(SUMPRODUCT((E$1:E2=E3)*(D$1:D2<999))>0,999,ROW()))","v":999},"покупатель2","Заказ раз в 14 дней; \nПолучение оборотки каждый четверг; \nЧто-то каждые 16 дней; \nЕщё что-то 17 числа каждого месяца",14,{"$f":"TEXT(TODAY()+ROW(),\"ДДДД\")","v":"четверг"},16,17," ",{"$f":"IFERROR(INDEX(E$1:E$217,SMALL(D$2:D$217,ROW()-1)),\"\")","v":"покупатель13"},{"$f":"--(LEN(L3)>0)","v":1}," ","менеджер2"," ","Заказ"," "]
["2015-01-03"," ","менеджер3",{"$f":"IF(ISERR(SEARCH($O$1,C4)),999,IF(SUMPRODUCT((E$1:E3=E4)*(D$1:D3<999))>0,999,ROW()))","v":999},"покупатель3","Заказ раз в 21 дней; \nПолучение оборотки каждый пятница; \nЧто-то каждые 23 дней; \nЕщё что-то 24 числа каждого месяца",21,"пятница",23,24," ","покупатель22",1," ","менеджер3"," ",null," "]
["2015-01-04"," ","менеджер4",{"$f":"IF(ISERR(SEARCH($O$1,C5)),999,IF(SUMPRODUCT((E$1:E4=E5)*(D$1:D4<999))>0,999,ROW()))","v":5},"покупатель4","Заказ раз в 28 дней; \nПолучение оборотки каждый суббота; \nЧто-то каждые 30 дней; \nЕщё что-то 31 числа каждого месяца",28,"суббота",30,31," ","покупатель24",1," ","менеджер4"," ",null," "]
["2015-01-05"," ","менеджер1",{"$f":"IF(ISERR(SEARCH($O$1,C6)),999,IF(SUMPRODUCT((E$1:E5=E6)*(D$1:D5<999))>0,999,ROW()))","v":999},"покупатель5","Заказ раз в 7 дней; \nПолучение оборотки каждый воскресенье; \nЧто-то каждые 9 дней; \nЕщё что-то 10 числа каждого месяца",7,"воскресенье",9,10," ","покупатель31",1," ","менеджер5"," ",null," "]
["2015-01-06"," ","менеджер5",{"$f":"IF(ISERR(SEARCH($O$1,C7)),999,IF(SUMPRODUCT((E$1:E6=E7)*(D$1:D6<999))>0,999,ROW()))","v":999},"покупатель6","Заказ раз в 14 дней; \nПолучение оборотки каждый понедельник; \nЧто-то каждые 16 дней; \nЕщё что-то 17 числа каждого месяца",14,"понедельник",16,17," ","покупатель35",1," ","менеджер6"," ",null," "]
["2015-01-07"," ","менеджер2",{"$f":"IF(ISERR(SEARCH($O$1,C8)),999,IF(SUMPRODUCT((E$1:E7=E8)*(D$1:D7<999))>0,999,ROW()))","v":999},"покупатель7","Заказ раз в 21 дней; \nПолучение оборотки каждый вторник; \nЧто-то каждые 23 дней; \nЕщё что-то 24 числа каждого месяца",21,"вторник",23,24," ","покупатель47",1," ","менеджер7"," ",null," "]
["2015-01-08"," ","менеджер2",{"$f":"IF(ISERR(SEARCH($O$1,C9)),999,IF(SUMPRODUCT((E$1:E8=E9)*(D$1:D8<999))>0,999,ROW()))","v":999},"покупатель8","Заказ раз в 28 дней; \nПолучение оборотки каждый среда; \nЧто-то каждые 30 дней; \nЕщё что-то 31 числа каждого месяца",28,"среда",30,31," ","покупатель66",1," ","менеджер8"," ",null," "]
["2015-01-09"," ","менеджер2",{"$f":"IF(ISERR(SEARCH($O$1,C10)),999,IF(SUMPRODUCT((E$1:E9=E10)*(D$1:D9<999))>0,999,ROW()))","v":999},"покупатель9","Заказ раз в 7 дней; \nПолучение оборотки каждый четверг; \nЧто-то каждые 9 дней; \nЕщё что-то 10 числа каждого месяца",7,"четверг",9,10," ","покупатель75",1," ","менеджер9"," ",null," "]
["2015-01-10"," ","менеджер6",{"$f":"IF(ISERR(SEARCH($O$1,C11)),999,IF(SUMPRODUCT((E$1:E10=E11)*(D$1:D10<999))>0,999,ROW()))","v":999},"покупатель10","Заказ раз в 14 дней; \nПолучение оборотки каждый пятница; \nЧто-то каждые 16 дней; \nЕщё что-то 17 числа каждого месяца",14,"пятница",16,17," ","покупатель95",1," ","менеджер10"," ",null," "]
["2015-01-11"," ","менеджер7",{"$f":"IF(ISERR(SEARCH($O$1,C12)),999,IF(SUMPRODUCT((E$1:E11=E12)*(D$1:D11<999))>0,999,ROW()))","v":999},"покупатель11","Заказ раз в 21 дней; \nПолучение оборотки каждый суббота; \nЧто-то каждые 23 дней; \nЕщё что-то 24 числа каждого месяца",21,"суббота",23,24," ","покупатель99",1," ","менеджер11"," ",null," "]
["2015-02-21"," ","менеджер8",{"$f":"IF(ISERR(SEARCH($O$1,C13)),999,IF(SUMPRODUCT((E$1:E12=E13)*(D$1:D12<999))>0,999,ROW()))","v":999},"покупатель12","Заказ раз в 28 дней; \nПолучение оборотки каждый воскресенье; \nЧто-то каждые 30 дней; \nЕщё что-то 31 числа каждого месяца",28,"воскресенье",30,31," ","покупатель128",1," ","менеджер12"," ",null," "]
["2015-02-22"," ","менеджер4",{"$f":"IF(ISERR(SEARCH($O$1,C14)),999,IF(SUMPRODUCT((E$1:E13=E14)*(D$1:D13<999))>0,999,ROW()))","v":14},"покупатель13","Заказ раз в 7 дней; \nПолучение оборотки каждый понедельник; \nЧто-то каждые 9 дней; \nЕщё что-то 10 числа каждого месяца",7,"понедельник",9,10," ","покупатель130",1," ","менеджер13"," ",null," "]
["2015-02-23"," ","менеджер6",{"$f":"IF(ISERR(SEARCH($O$1,C15)),999,IF(SUMPRODUCT((E$1:E14=E15)*(D$1:D14<999))>0,999,ROW()))","v":999},"покупатель14","Заказ раз в 14 дней; \nПолучение оборотки каждый вторник; \nЧто-то каждые 16 дней; \nЕщё что-то 17 числа каждого месяца",14,"вторник",16,17," ","покупатель151",1," ","менеджер14"," ",null," "]
["2015-03-07"," ","менеджер9",{"$f":"IF(ISERR(SEARCH($O$1,C16)),999,IF(SUMPRODUCT((E$1:E15=E16)*(D$1:D15<999))>0,999,ROW()))","v":999},"покупатель15","Заказ раз в 21 дней; \nПолучение оборотки каждый среда; \nЧто-то каждые 23 дней; \nЕщё что-то 24 числа каждого месяца",21,"среда",23,24," ","покупатель173",1," ","менеджер15"," ",null," "]
["2015-03-08"," ","менеджер2",{"$f":"IF(ISERR(SEARCH($O$1,C17)),999,IF(SUMPRODUCT((E$1:E16=E17)*(D$1:D16<999))>0,999,ROW()))","v":999},"покупатель16","Заказ раз в 28 дней; \nПолучение оборотки каждый четверг; \nЧто-то каждые 30 дней; \nЕщё что-то 31 числа каждого месяца",28,"четверг",30,31," ","покупатель177",1," ","менеджер16"," ",null," "]
["2015-03-09"," ","менеджер10",{"$f":"IF(ISERR(SEARCH($O$1,C18)),999,IF(SUMPRODUCT((E$1:E17=E18)*(D$1:D17<999))>0,999,ROW()))","v":999},"покупатель17","Заказ раз в 7 дней; \nПолучение оборотки каждый пятница; \nЧто-то каждые 9 дней; \nЕщё что-то 10 числа каждого месяца",7,"пятница",9,10," ","покупатель179",1," ","менеджер17"," ",null," "]
["2015-05-01"," ","менеджер11",{"$f":"IF(ISERR(SEARCH($O$1,C19)),999,IF(SUMPRODUCT((E$1:E18=E19)*(D$1:D18<999))>0,999,ROW()))","v":999},"покупатель18","Заказ раз в 14 дней; \nПолучение оборотки каждый суббота; \nЧто-то каждые 16 дней; \nЕщё что-то 17 числа каждого месяца",14,"суббота",16,17," ","покупатель188",1," ","менеджер18"," ",null," "]
["2015-05-02"," ","менеджер12",{"$f":"IF(ISERR(SEARCH($O$1,C20)),999,IF(SUMPRODUCT((E$1:E19=E20)*(D$1:D19<999))>0,999,ROW()))","v":999},"покупатель19","Заказ раз в 21 дней; \nПолучение оборотки каждый воскресенье; \nЧто-то каждые 23 дней; \nЕщё что-то 24 числа каждого месяца",21,"воскресенье",23,24," ","покупатель189",1," ","менеджер19"," ",null," "]
["2015-05-03"," ","менеджер9",{"$f":"IF(ISERR(SEARCH($O$1,C21)),999,IF(SUMPRODUCT((E$1:E20=E21)*(D$1:D20<999))>0,999,ROW()))","v":999},"покупатель20","Заказ раз в 28 дней; \nПолучение оборотки каждый понедельник; \nЧто-то каждые 30 дней; \nЕщё что-то 31 числа каждого месяца",28,"понедельник",30,31," ","",0," ","менеджер20"," ",null," "]
["2015-05-04"," ","менеджер13",{"$f":"IF(ISERR(SEARCH($O$1,C22)),999,IF(SUMPRODUCT((E$1:E21=E22)*(D$1:D21<999))>0,999,ROW()))","v":999},"покупатель21","Заказ раз в 7 дней; \nПолучение оборотки каждый вторник; \nЧто-то каждые 9 дней; \nЕщё что-то 10 числа каждого месяца",7,"вторник",9,10," ","",0," ","менеджер21"," ",null," "]
["2015-05-09"," ","менеджер4",{"$f":"IF(ISERR(SEARCH($O$1,C23)),999,IF(SUMPRODUCT((E$1:E22=E23)*(D$1:D22<999))>0,999,ROW()))","v":23},"покупатель22","Заказ раз в 14 дней; \nПолучение оборотки каждый среда; \nЧто-то каждые 16 дней; \nЕщё что-то 17 числа каждого месяца",14,"среда",16,17," ","",0," ","менеджер22"," ",null," "]
["2015-05-10"," ","менеджер3",{"$f":"IF(ISERR(SEARCH($O$1,C24)),999,IF(SUMPRODUCT((E$1:E23=E24)*(D$1:D23<999))>0,999,ROW()))","v":999},"покупатель23","Заказ раз в 21 дней; \nПолучение оборотки каждый четверг; \nЧто-то каждые 23 дней; \nЕщё что-то 24 числа каждого месяца",21,"четверг",23,24," ","",0," ","менеджер23"," ",null," "]
["2015-05-11"," ","менеджер4",{"$f":"IF(ISERR(SEARCH($O$1,C25)),999,IF(SUMPRODUCT((E$1:E24=E25)*(D$1:D24<999))>0,999,ROW()))","v":25},"покупатель24","Заказ раз в 28 дней; \nПолучение оборотки каждый пятница; \nЕщё что-то 31 числа каждого месяца",28,"пятница",null,31," ","",0," ","менеджер24"," ",null," "]
["2015-06-12"," ","менеджер3",{"$f":"IF(ISERR(SEARCH($O$1,C26)),999,IF(SUMPRODUCT((E$1:E25=E26)*(D$1:D25<999))>0,999,ROW()))","v":999},"покупатель25","Заказ раз в 7 дней; \nПолучение оборотки каждый суббота; \nЧто-то каждые 9 дней; \nЕщё что-то 10 числа каждого месяца",7,"суббота",9,10," ","",0," ","менеджер25"," ",null," "]
["2015-11-04"," ","менеджер2",{"$f":"IF(ISERR(SEARCH($O$1,C27)),999,IF(SUMPRODUCT((E$1:E26=E27)*(D$1:D26<999))>0,999,ROW()))","v":999},"покупатель26","Заказ раз в 14 дней; \nПолучение оборотки каждый воскресенье; \nЧто-то каждые 16 дней; \nЕщё что-то 17 числа каждого месяца",14,"воскресенье",16,17," ",{"$f":"IFERROR(INDEX(E$1:E$217,SMALL(D$2:D$217,ROW()-1)),\"\")","v":""},0," ",null," ",null," "]
["2016-01-01"," ","менеджер1",{"$f":"IF(ISERR(SEARCH($O$1,C28)),999,IF(SUMPRODUCT((E$1:E27=E28)*(D$1:D27<999))>0,999,ROW()))","v":999},"покупатель27","Заказ раз в 21 дней; \nПолучение оборотки каждый понедельник; \nЧто-то каждые 23 дней; \nЕщё что-то 24 числа каждого месяца",21,"понедельник",23,24," ","",0," ",null," ",null," "]
["2016-01-04"," ","менеджер6",{"$f":"IF(ISERR(SEARCH($O$1,C29)),999,IF(SUMPRODUCT((E$1:E28=E29)*(D$1:D28<999))>0,999,ROW()))","v":999},"покупатель28","Заказ раз в 28 дней; \nПолучение оборотки каждый вторник; \nЧто-то каждые 30 дней; \nЕщё что-то 31 числа каждого месяца",28,"вторник",30,31," ","",0," ",null," ",null," "]
["2016-01-05"," ","менеджер9",{"$f":"IF(ISERR(SEARCH($O$1,C30)),999,IF(SUMPRODUCT((E$1:E29=E30)*(D$1:D29<999))>0,999,ROW()))","v":999},"покупатель29","Заказ раз в 7 дней; \nПолучение оборотки каждый среда; \nЧто-то каждые 9 дней; \nЕщё что-то 10 числа каждого месяца",7,"среда",9,10," ","",0," ",null," ",null," "]
["2016-01-06"," ","менеджер8",{"$f":"IF(ISERR(SEARCH($O$1,C31)),999,IF(SUMPRODUCT((E$1:E30=E31)*(D$1:D30<999))>0,999,ROW()))","v":999},"покупатель30","Заказ раз в 14 дней; \nПолучение оборотки каждый четверг; \nЧто-то каждые 16 дней; \nЕщё что-то 17 числа каждого месяца",14,"четверг",16,17," ","",0," ",null," ",null," "]
["2016-01-07"," ","менеджер4",{"$f":"IF(ISERR(SEARCH($O$1,C32)),999,IF(SUMPRODUCT((E$1:E31=E32)*(D$1:D31<999))>0,999,ROW()))","v":32},"покупатель31","Заказ раз в 21 дней; \nПолучение оборотки каждый пятница; \nЧто-то каждые 23 дней; \nЕщё что-то 24 числа каждого месяца",21,"пятница",23,24," ","",0," ",null," ",null," "]
["2016-01-08"," ","менеджер10",{"$f":"IF(ISERR(SEARCH($O$1,C33)),999,IF(SUMPRODUCT((E$1:E32=E33)*(D$1:D32<999))>0,999,ROW()))","v":999},"покупатель32","Заказ раз в 28 дней; \nПолучение оборотки каждый суббота; \nЧто-то каждые 30 дней; \nЕщё что-то 31 числа каждого месяца",28,"суббота",30,31," ","",0," ",null," ",null," "]
["2016-02-23"," ","менеджер7",{"$f":"IF(ISERR(SEARCH($O$1,C34)),999,IF(SUMPRODUCT((E$1:E33=E34)*(D$1:D33<999))>0,999,ROW()))","v":999},"покупатель33","Заказ раз в 7 дней; \nПолучение оборотки каждый воскресенье; \nЧто-то каждые 9 дней; \nЕщё что-то 10 числа каждого месяца",7,"воскресенье",9,10," ","",0," ",null," ",null," "]
["2016-03-07"," ","менеджер6",{"$f":"IF(ISERR(SEARCH($O$1,C35)),999,IF(SUMPRODUCT((E$1:E34=E35)*(D$1:D34<999))>0,999,ROW()))","v":999},"покупатель34","Заказ раз в 14 дней; \nПолучение оборотки каждый понедельник; \nЧто-то каждые 16 дней; \nЕщё что-то 17 числа каждого месяца",14,"понедельник",16,17," ","",0," ",null," ",null," "]
["2016-03-08"," ","менеджер4",{"$f":"IF(ISERR(SEARCH($O$1,C36)),999,IF(SUMPRODUCT((E$1:E35=E36)*(D$1:D35<999))>0,999,ROW()))","v":36},"покупатель35","Заказ раз в 21 дней; \nПолучение оборотки каждый вторник; \nЧто-то каждые 23 дней; \nЕщё что-то 24 числа каждого месяца",21,"вторник",23,24," ","",0," ",null," ",null," "]
["2016-05-02"," ","менеджер2",{"$f":"IF(ISERR(SEARCH($O$1,C37)),999,IF(SUMPRODUCT((E$1:E36=E37)*(D$1:D36<999))>0,999,ROW()))","v":999},"покупатель36","Заказ раз в 28 дней; \nПолучение оборотки каждый среда; \nЧто-то каждые 30 дней; \nЕщё что-то 31 числа каждого месяца",28,"среда",30,31," ","",0," ",null," ",null," "]
["2016-05-03"," ","менеджер1",{"$f":"IF(ISERR(SEARCH($O$1,C38)),999,IF(SUMPRODUCT((E$1:E37=E38)*(D$1:D37<999))>0,999,ROW()))","v":999},"покупатель37","Заказ раз в 7 дней; \nПолучение оборотки каждый четверг; \nЧто-то каждые 9 дней; \nЕщё что-то 10 числа каждого месяца",7,"четверг",9,10," ","",0," ",null," ",null," "]
["2016-05-09"," ","менеджер8",{"$f":"IF(ISERR(SEARCH($O$1,C39)),999,IF(SUMPRODUCT((E$1:E38=E39)*(D$1:D38<999))>0,999,ROW()))","v":999},"покупатель38","Заказ раз в 14 дней; \nПолучение оборотки каждый пятница; \nЧто-то каждые 16 дней; \nЕщё что-то 17 числа каждого месяца",14,"пятница",16,17," ","",0," ",null," ",null," "]
["2016-06-13"," ","менеджер6",{"$f":"IF(ISERR(SEARCH($O$1,C40)),999,IF(SUMPRODUCT((E$1:E39=E40)*(D$1:D39<999))>0,999,ROW()))","v":999},"покупатель39","Заказ раз в 21 дней; \nПолучение оборотки каждый суббота; \nЧто-то каждые 23 дней; \nЕщё что-то 24 числа каждого месяца",21,"суббота",23,24," ","",0," ",null," ",null," "]
["2016-11-03"," ","менеджер1",{"$f":"IF(ISERR(SEARCH($O$1,C41)),999,IF(SUMPRODUCT((E$1:E40=E41)*(D$1:D40<999))>0,999,ROW()))","v":999},"покупатель40","Заказ раз в 28 дней; \nПолучение оборотки каждый воскресенье; \nЧто-то каждые 30 дней; \nЕщё что-то 31 числа каждого месяца",28,"воскресенье",30,31," ","",0," ",null," ",null," "]
["2016-11-04"," ","менеджер6",{"$f":"IF(ISERR(SEARCH($O$1,C42)),999,IF(SUMPRODUCT((E$1:E41=E42)*(D$1:D41<999))>0,999,ROW()))","v":999},"покупатель41","Заказ раз в 7 дней; \nПолучение оборотки каждый понедельник; \nЧто-то каждые 9 дней; \nЕщё что-то 10 числа каждого месяца",7,"понедельник",9,10," ","",0," ",null," ",null," "]
[null," ","менеджер13",{"$f":"IF(ISERR(SEARCH($O$1,C43)),999,IF(SUMPRODUCT((E$1:E42=E43)*(D$1:D42<999))>0,999,ROW()))","v":999},"покупатель42","Заказ раз в 14 дней; \nПолучение оборотки каждый вторник; \nЧто-то каждые 16 дней; \nЕщё что-то 17 числа каждого месяца",14,"вторник",16,17," ","",0," ",null," ",null," "]
[null," ","менеджер2",{"$f":"IF(ISERR(SEARCH($O$1,C44)),999,IF(SUMPRODUCT((E$1:E43=E44)*(D$1:D43<999))>0,999,ROW()))","v":999},"покупатель43","Заказ раз в 21 дней; \nПолучение оборотки каждый среда; \nЧто-то каждые 23 дней; \nЕщё что-то 24 числа каждого месяца",21,"среда",23,24," ","",0," ",null," ",null," "]
[null," ","менеджер5",{"$f":"IF(ISERR(SEARCH($O$1,C45)),999,IF(SUMPRODUCT((E$1:E44=E45)*(D$1:D44<999))>0,999,ROW()))","v":999},"покупатель44","Заказ раз в 28 дней; \nПолучение оборотки каждый четверг; \nЧто-то каждые 30 дней; \nЕщё что-то 31 числа каждого месяца",28,"четверг",30,31," ","",0," ",null," ",null," "]
[null," ","менеджер5",{"$f":"IF(ISERR(SEARCH($O$1,C46)),999,IF(SUMPRODUCT((E$1:E45=E46)*(D$1:D45<999))>0,999,ROW()))","v":999},"покупатель45","Заказ раз в 7 дней; \nПолучение оборотки каждый пятница; \nЧто-то каждые 9 дней; \nЕщё что-то 10 числа каждого месяца",7,"пятница",9,10," ","",0," ",null," ",null," "]
[null," ","менеджер1",{"$f":"IF(ISERR(SEARCH($O$1,C47)),999,IF(SUMPRODUCT((E$1:E46=E47)*(D$1:D46<999))>0,999,ROW()))","v":999},"покупатель46","Заказ раз в 14 дней; \nПолучение оборотки каждый суббота; \nЧто-то каждые 16 дней; \nЕщё что-то 17 числа каждого месяца",14,"суббота",16,17," ","",0," ",null," ",null," "]
[null," ","менеджер4",{"$f":"IF(ISERR(SEARCH($O$1,C48)),999,IF(SUMPRODUCT((E$1:E47=E48)*(D$1:D47<999))>0,999,ROW()))","v":48},"покупатель47","Заказ раз в 21 дней; \nПолучение оборотки каждый воскресенье; \nЧто-то каждые 23 дней; \nЕщё что-то 24 числа каждого месяца",21,"воскресенье",23,24," ","",0," ",null," ",null," "]
[null," ","менеджер14",{"$f":"IF(ISERR(SEARCH($O$1,C49)),999,IF(SUMPRODUCT((E$1:E48=E49)*(D$1:D48<999))>0,999,ROW()))","v":999},"покупатель48","Заказ раз в 28 дней; \nПолучение оборотки каждый понедельник; \nЧто-то каждые 30 дней; \nЕщё что-то 31 числа каждого месяца",28,"понедельник",30,31," ","",0," ",null," ",null," "]
[null," ","менеджер2",{"$f":"IF(ISERR(SEARCH($O$1,C50)),999,IF(SUMPRODUCT((E$1:E49=E50)*(D$1:D49<999))>0,999,ROW()))","v":999},"покупатель49","Заказ раз в 7 дней; \nПолучение оборотки каждый вторник; \nЧто-то каждые 9 дней; \nЕщё что-то 10 числа каждого месяца",7,"вторник",9,10," ","",0," ",null," ",null," "]
[null," ","менеджер15",{"$f":"IF(ISERR(SEARCH($O$1,C51)),999,IF(SUMPRODUCT((E$1:E50=E51)*(D$1:D50<999))>0,999,ROW()))","v":999},"покупатель50","Заказ раз в 14 дней; \nПолучение оборотки каждый среда; \nЧто-то каждые 16 дней; \nЕщё что-то 17 числа каждого месяца",14,"среда",16,17," ","",0," ",null," ",null," "]
[null," ","менеджер16",{"$f":"IF(ISERR(SEARCH($O$1,C52)),999,IF(SUMPRODUCT((E$1:E51=E52)*(D$1:D51<999))>0,999,ROW()))","v":999},"покупатель51","Заказ раз в 21 дней; \nПолучение оборотки каждый четверг; \nЧто-то каждые 23 дней; \nЕщё что-то 24 числа каждого месяца",21,"четверг",23,24," ",{"$f":"IFERROR(INDEX(E$1:E$217,SMALL(D$2:D$217,ROW()-1)),\"\")","v":""},0," ",null," ",null," "]
[null," ","менеджер1",{"$f":"IF(ISERR(SEARCH($O$1,C53)),999,IF(SUMPRODUCT((E$1:E52=E53)*(D$1:D52<999))>0,999,ROW()))","v":999},"покупатель52","Заказ раз в 28 дней; \nПолучение оборотки каждый пятница; \nЧто-то каждые 30 дней; \nЕщё что-то 31 числа каждого месяца",28,"пятница",30,31," ","",0," ",null," ",null," "]
[null," ","менеджер3",{"$f":"IF(ISERR(SEARCH($O$1,C54)),999,IF(SUMPRODUCT((E$1:E53=E54)*(D$1:D53<999))>0,999,ROW()))","v":999},"покупатель53","Заказ раз в 7 дней; \nПолучение оборотки каждый суббота; \nЧто-то каждые 9 дней; \nЕщё что-то 10 числа каждого месяца",7,"суббота",9,10," ","",0," ",null," ",null," "]
[null," ","менеджер17",{"$f":"IF(ISERR(SEARCH($O$1,C55)),999,IF(SUMPRODUCT((E$1:E54=E55)*(D$1:D54<999))>0,999,ROW()))","v":999},"покупатель54","Заказ раз в 14 дней; \nПолучение оборотки каждый воскресенье; \nЧто-то каждые 16 дней; \nЕщё что-то 17 числа каждого месяца",14,"воскресенье",16,17," ","",0," ",null," ",null," "]
[null," ","менеджер3",{"$f":"IF(ISERR(SEARCH($O$1,C56)),999,IF(SUMPRODUCT((E$1:E55=E56)*(D$1:D55<999))>0,999,ROW()))","v":999},"покупатель55","Заказ раз в 21 дней; \nПолучение оборотки каждый понедельник; \nЧто-то каждые 23 дней; \nЕщё что-то 24 числа каждого месяца",21,"понедельник",23,24," ","",0," ",null," ",null," "]
[null," ","менеджер9",{"$f":"IF(ISERR(SEARCH($O$1,C57)),999,IF(SUMPRODUCT((E$1:E56=E57)*(D$1:D56<999))>0,999,ROW()))","v":999},"покупатель56","Заказ раз в 28 дней; \nПолучение оборотки каждый вторник; \nЧто-то каждые 30 дней; \nЕщё что-то 31 числа каждого месяца",28,"вторник",30,31," ","",0," ",null," ",null," "]
[null," ","менеджер7",{"$f":"IF(ISERR(SEARCH($O$1,C58)),999,IF(SUMPRODUCT((E$1:E57=E58)*(D$1:D57<999))>0,999,ROW()))","v":999},"покупатель57","Заказ раз в 7 дней; \nПолучение оборотки каждый среда; \nЧто-то каждые 9 дней; \nЕщё что-то 10 числа каждого месяца",7,"среда",9,10," ","",0," ",null," ",null," "]
[null," ","менеджер3",{"$f":"IF(ISERR(SEARCH($O$1,C59)),999,IF(SUMPRODUCT((E$1:E58=E59)*(D$1:D58<999))>0,999,ROW()))","v":999},"покупатель58","Заказ раз в 14 дней; \nПолучение оборотки каждый четверг; \nЧто-то каждые 16 дней; \nЕщё что-то 17 числа каждого месяца",14,"четверг",16,17," ","",0," ",null," ",null," "]
[null," ","менеджер3",{"$f":"IF(ISERR(SEARCH($O$1,C60)),999,IF(SUMPRODUCT((E$1:E59=E60)*(D$1:D59<999))>0,999,ROW()))","v":999},"покупатель59","Заказ раз в 21 дней; \nПолучение оборотки каждый пятница; \nЧто-то каждые 23 дней; \nЕщё что-то 24 числа каждого месяца",21,"пятница",23,24," ","",0," ",null," ",null," "]
[null," ","менеджер11",{"$f":"IF(ISERR(SEARCH($O$1,C61)),999,IF(SUMPRODUCT((E$1:E60=E61)*(D$1:D60<999))>0,999,ROW()))","v":999},"покупатель60","Заказ раз в 28 дней; \nПолучение оборотки каждый суббота; \nЧто-то каждые 30 дней; \nЕщё что-то 31 числа каждого месяца",28,"суббота",30,31," ","",0," ",null," ",null," "]
[null," ","менеджер18",{"$f":"IF(ISERR(SEARCH($O$1,C62)),999,IF(SUMPRODUCT((E$1:E61=E62)*(D$1:D61<999))>0,999,ROW()))","v":999},"покупатель61","Заказ раз в 7 дней; \nПолучение оборотки каждый воскресенье; \nЧто-то каждые 9 дней; \nЕщё что-то 10 числа каждого месяца",7,"воскресенье",9,10," ","",0," ",null," ",null," "]
[null," ","менеджер18",{"$f":"IF(ISERR(SEARCH($O$1,C63)),999,IF(SUMPRODUCT((E$1:E62=E63)*(D$1:D62<999))>0,999,ROW()))","v":999},"покупатель62","Заказ раз в 14 дней; \nПолучение оборотки каждый понедельник; \nЧто-то каждые 16 дней; \nЕщё что-то 17 числа каждого месяца",14,"понедельник",16,17," ","",0," ",null," ",null," "]
[null," ","менеджер11",{"$f":"IF(ISERR(SEARCH($O$1,C64)),999,IF(SUMPRODUCT((E$1:E63=E64)*(D$1:D63<999))>0,999,ROW()))","v":999},"покупатель63","Заказ раз в 21 дней; \nПолучение оборотки каждый вторник; \nЧто-то каждые 23 дней; \nЕщё что-то 24 числа каждого месяца",21,"вторник",23,24," ","",0," ",null," ",null," "]
[null," ","менеджер7",{"$f":"IF(ISERR(SEARCH($O$1,C65)),999,IF(SUMPRODUCT((E$1:E64=E65)*(D$1:D64<999))>0,999,ROW()))","v":999},"покупатель64","Заказ раз в 28 дней; \nПолучение оборотки каждый среда; \nЧто-то каждые 30 дней; \nЕщё что-то 31 числа каждого месяца",28,"среда",30,31," ","",0," ",null," ",null," "]
[null," ","менеджер6",{"$f":"IF(ISERR(SEARCH($O$1,C66)),999,IF(SUMPRODUCT((E$1:E65=E66)*(D$1:D65<999))>0,999,ROW()))","v":999},"покупатель65",{"$f":"IF(G66=0,\"\",SUBSTITUTE(G$1,\"ёё\",G66)&шб)&IF(H66=0,\"\",SUBSTITUTE(H$1,\"ёё\",H66)&шб)&IF(I66=0,\"\",SUBSTITUTE(I$1,\"ёё\",I66)&шб)&IF(J66=0,\"\",SUBSTITUTE(J$1,\"ёё\",J66))","v":"Заказ раз в 7 дней; \nПолучение оборотки каждый четверг; \nЧто-то каждые 9 дней; \nЕщё что-то 10 числа каждого месяца"},7,"четверг",9,10," ","",0," ",null," ",null," "]
[null," ","менеджер4",{"$f":"IF(ISERR(SEARCH($O$1,C67)),999,IF(SUMPRODUCT((E$1:E66=E67)*(D$1:D66<999))>0,999,ROW()))","v":67},"покупатель66","Заказ раз в 14 дней; \nПолучение оборотки каждый пятница; \nЧто-то каждые 16 дней; \nЕщё что-то 17 числа каждого месяца",14,{"$f":"TEXT(TODAY()+ROW(),\"ДДДД\")","v":"пятница"},16,17," ","",{"$f":"--(LEN(L67)>0)","v":0}," ",null," ",null," "]
[null," ","менеджер2",{"$f":"IF(ISERR(SEARCH($O$1,C68)),999,IF(SUMPRODUCT((E$1:E67=E68)*(D$1:D67<999))>0,999,ROW()))","v":999},"покупатель67","Заказ раз в 21 дней; \nПолучение оборотки каждый суббота; \nЧто-то каждые 23 дней; \nЕщё что-то 24 числа каждого месяца",21,"суббота",23,24," ","",0," ",null," ",null," "]
[null," ","менеджер18",{"$f":"IF(ISERR(SEARCH($O$1,C69)),999,IF(SUMPRODUCT((E$1:E68=E69)*(D$1:D68<999))>0,999,ROW()))","v":999},"покупатель68","Заказ раз в 28 дней; \nПолучение оборотки каждый воскресенье; \nЧто-то каждые 30 дней; \nЕщё что-то 31 числа каждого месяца",28,"воскресенье",30,31," ","",0," ",null," ",null," "]
[null," ","менеджер17",{"$f":"IF(ISERR(SEARCH($O$1,C70)),999,IF(SUMPRODUCT((E$1:E69=E70)*(D$1:D69<999))>0,999,ROW()))","v":999},"покупатель69","Заказ раз в 7 дней; \nПолучение оборотки каждый понедельник; \nЧто-то каждые 9 дней; \nЕщё что-то 10 числа каждого месяца",7,"понедельник",9,10," ","",0," ",null," ",null," "]
[null," ","менеджер1",{"$f":"IF(ISERR(SEARCH($O$1,C71)),999,IF(SUMPRODUCT((E$1:E70=E71)*(D$1:D70<999))>0,999,ROW()))","v":999},"покупатель70","Заказ раз в 14 дней; \nПолучение оборотки каждый вторник; \nЧто-то каждые 16 дней; \nЕщё что-то 17 числа каждого месяца",14,"вторник",16,17," ","",0," ",null," ",null," "]
[null," ","менеджер2",{"$f":"IF(ISERR(SEARCH($O$1,C72)),999,IF(SUMPRODUCT((E$1:E71=E72)*(D$1:D71<999))>0,999,ROW()))","v":999},"покупатель71","Заказ раз в 21 дней; \nПолучение оборотки каждый среда; \nЧто-то каждые 23 дней; \nЕщё что-то 24 числа каждого месяца",21,"среда",23,24," ","",0," ",null," ",null," "]
[null," ","менеджер18",{"$f":"IF(ISERR(SEARCH($O$1,C73)),999,IF(SUMPRODUCT((E$1:E72=E73)*(D$1:D72<999))>0,999,ROW()))","v":999},"покупатель72","Заказ раз в 28 дней; \nПолучение оборотки каждый четверг; \nЧто-то каждые 30 дней; \nЕщё что-то 31 числа каждого месяца",28,"четверг",30,31," ","",0," ",null," ",null," "]
[null," ","менеджер18",{"$f":"IF(ISERR(SEARCH($O$1,C74)),999,IF(SUMPRODUCT((E$1:E73=E74)*(D$1:D73<999))>0,999,ROW()))","v":999},"покупатель73","Заказ раз в 7 дней; \nПолучение оборотки каждый пятница; \nЧто-то каждые 9 дней; \nЕщё что-то 10 числа каждого месяца",7,"пятница",9,10," ","",0," ",null," ",null," "]
[null," ","менеджер6",{"$f":"IF(ISERR(SEARCH($O$1,C75)),999,IF(SUMPRODUCT((E$1:E74=E75)*(D$1:D74<999))>0,999,ROW()))","v":999},"покупатель74","Заказ раз в 14 дней; \nПолучение оборотки каждый суббота; \nЧто-то каждые 16 дней; \nЕщё что-то 17 числа каждого месяца",14,"суббота",16,17," ","",0," ",null," ",null," "]
[null," ","менеджер4",{"$f":"IF(ISERR(SEARCH($O$1,C76)),999,IF(SUMPRODUCT((E$1:E75=E76)*(D$1:D75<999))>0,999,ROW()))","v":76},"покупатель75","Заказ раз в 21 дней; \nПолучение оборотки каждый воскресенье; \nЧто-то каждые 23 дней; \nЕщё что-то 24 числа каждого месяца",21,"воскресенье",23,24," ","",0," ",null," ",null," "]
[null," ","менеджер11",{"$f":"IF(ISERR(SEARCH($O$1,C77)),999,IF(SUMPRODUCT((E$1:E76=E77)*(D$1:D76<999))>0,999,ROW()))","v":999},"покупатель76","Заказ раз в 28 дней; \nПолучение оборотки каждый понедельник; \nЧто-то каждые 30 дней; \nЕщё что-то 31 числа каждого месяца",28,"понедельник",30,31," ","",0," ",null," ",null," "]
[null," ","менеджер18",{"$f":"IF(ISERR(SEARCH($O$1,C78)),999,IF(SUMPRODUCT((E$1:E77=E78)*(D$1:D77<999))>0,999,ROW()))","v":999},"покупатель77","Заказ раз в 7 дней; \nПолучение оборотки каждый вторник; \nЧто-то каждые 9 дней; \nЕщё что-то 10 числа каждого месяца",7,"вторник",9,10," ","",0," ",null," ",null," "]
[null," ","менеджер18",{"$f":"IF(ISERR(SEARCH($O$1,C79)),999,IF(SUMPRODUCT((E$1:E78=E79)*(D$1:D78<999))>0,999,ROW()))","v":999},"покупатель78","Заказ раз в 14 дней; \nПолучение оборотки каждый среда; \nЧто-то каждые 16 дней; \nЕщё что-то 17 числа каждого месяца",14,"среда",16,17," ","",0," ",null," ",null," "]
[null," ","менеджер17",{"$f":"IF(ISERR(SEARCH($O$1,C80)),999,IF(SUMPRODUCT((E$1:E79=E80)*(D$1:D79<999))>0,999,ROW()))","v":999},"покупатель79","Заказ раз в 21 дней; \nПолучение оборотки каждый четверг; \nЧто-то каждые 23 дней; \nЕщё что-то 24 числа каждого месяца",21,"четверг",23,24," ",null,null," ",null," ",null," "]
[null," ","менеджер3",{"$f":"IF(ISERR(SEARCH($O$1,C81)),999,IF(SUMPRODUCT((E$1:E80=E81)*(D$1:D80<999))>0,999,ROW()))","v":999},"покупатель80","Заказ раз в 28 дней; \nПолучение оборотки каждый пятница; \nЧто-то каждые 30 дней; \nЕщё что-то 31 числа каждого месяца",28,"пятница",30,31," ",null,null," ",null," ",null," "]
[null," ","менеджер2",{"$f":"IF(ISERR(SEARCH($O$1,C82)),999,IF(SUMPRODUCT((E$1:E81=E82)*(D$1:D81<999))>0,999,ROW()))","v":999},"покупатель81","Заказ раз в 7 дней; \nПолучение оборотки каждый суббота; \nЧто-то каждые 9 дней; \nЕщё что-то 10 числа каждого месяца",7,"суббота",9,10," ",null,null," ",null," ",null," "]
[null," ","менеджер3",{"$f":"IF(ISERR(SEARCH($O$1,C83)),999,IF(SUMPRODUCT((E$1:E82=E83)*(D$1:D82<999))>0,999,ROW()))","v":999},"покупатель82","Заказ раз в 14 дней; \nПолучение оборотки каждый воскресенье; \nЧто-то каждые 16 дней; \nЕщё что-то 17 числа каждого месяца",14,"воскресенье",16,17," ",null,null," ",null," ",null," "]
[null," ","менеджер6",{"$f":"IF(ISERR(SEARCH($O$1,C84)),999,IF(SUMPRODUCT((E$1:E83=E84)*(D$1:D83<999))>0,999,ROW()))","v":999},"покупатель83","Заказ раз в 21 дней; \nПолучение оборотки каждый понедельник; \nЧто-то каждые 23 дней; \nЕщё что-то 24 числа каждого месяца",21,"понедельник",23,24," ",null,null," ",null," ",null," "]
[null," ","менеджер17",{"$f":"IF(ISERR(SEARCH($O$1,C85)),999,IF(SUMPRODUCT((E$1:E84=E85)*(D$1:D84<999))>0,999,ROW()))","v":999},"покупатель84","Заказ раз в 28 дней; \nПолучение оборотки каждый вторник; \nЧто-то каждые 30 дней; \nЕщё что-то 31 числа каждого месяца",28,"вторник",30,31," ",null,null," ",null," ",null," "]
[null," ","менеджер18",{"$f":"IF(ISERR(SEARCH($O$1,C86)),999,IF(SUMPRODUCT((E$1:E85=E86)*(D$1:D85<999))>0,999,ROW()))","v":999},"покупатель85","Заказ раз в 7 дней; \nПолучение оборотки каждый среда; \nЧто-то каждые 9 дней; \nЕщё что-то 10 числа каждого месяца",7,"среда",9,10," ",null,null," ",null," ",null," "]
[null," ","менеджер7",{"$f":"IF(ISERR(SEARCH($O$1,C87)),999,IF(SUMPRODUCT((E$1:E86=E87)*(D$1:D86<999))>0,999,ROW()))","v":999},"покупатель86","Заказ раз в 14 дней; \nПолучение оборотки каждый четверг; \nЧто-то каждые 16 дней; \nЕщё что-то 17 числа каждого месяца",14,"четверг",16,17," ",null,null," ",null," ",null," "]
[null," ","менеджер10",{"$f":"IF(ISERR(SEARCH($O$1,C88)),999,IF(SUMPRODUCT((E$1:E87=E88)*(D$1:D87<999))>0,999,ROW()))","v":999},"покупатель87","Заказ раз в 21 дней; \nПолучение оборотки каждый пятница; \nЧто-то каждые 23 дней; \nЕщё что-то 24 числа каждого месяца",21,"пятница",23,24," ",null,null," ",null," ",null," "]
[null," ","менеджер7",{"$f":"IF(ISERR(SEARCH($O$1,C89)),999,IF(SUMPRODUCT((E$1:E88=E89)*(D$1:D88<999))>0,999,ROW()))","v":999},"покупатель88","Заказ раз в 28 дней; \nПолучение оборотки каждый суббота; \nЧто-то каждые 30 дней; \nЕщё что-то 31 числа каждого месяца",28,"суббота",30,31," ",null,null," ",null," ",null," "]
[null," ","менеджер9",{"$f":"IF(ISERR(SEARCH($O$1,C90)),999,IF(SUMPRODUCT((E$1:E89=E90)*(D$1:D89<999))>0,999,ROW()))","v":999},"покупатель89","Заказ раз в 7 дней; \nПолучение оборотки каждый воскресенье; \nЧто-то каждые 9 дней; \nЕщё что-то 10 числа каждого месяца",7,"воскресенье",9,10," ",null,null," ",null," ",null," "]
[null," ","менеджер8",{"$f":"IF(ISERR(SEARCH($O$1,C91)),999,IF(SUMPRODUCT((E$1:E90=E91)*(D$1:D90<999))>0,999,ROW()))","v":999},"покупатель90","Заказ раз в 14 дней; \nПолучение оборотки каждый понедельник; \nЧто-то каждые 16 дней; \nЕщё что-то 17 числа каждого месяца",14,"понедельник",16,17," ",null,null," ",null," ",null," "]
[null," ","менеджер8",{"$f":"IF(ISERR(SEARCH($O$1,C92)),999,IF(SUMPRODUCT((E$1:E91=E92)*(D$1:D91<999))>0,999,ROW()))","v":999},"покупатель91","Заказ раз в 21 дней; \nПолучение оборотки каждый вторник; \nЧто-то каждые 23 дней; \nЕщё что-то 24 числа каждого месяца",21,"вторник",23,24," ",null,null," ",null," ",null," "]
[null," ","менеджер19",{"$f":"IF(ISERR(SEARCH($O$1,C93)),999,IF(SUMPRODUCT((E$1:E92=E93)*(D$1:D92<999))>0,999,ROW()))","v":999},"покупатель92","Заказ раз в 28 дней; \nПолучение оборотки каждый среда; \nЧто-то каждые 30 дней; \nЕщё что-то 31 числа каждого месяца",28,"среда",30,31," ",null,null," ",null," ",null," "]
[null," ","менеджер8",{"$f":"IF(ISERR(SEARCH($O$1,C94)),999,IF(SUMPRODUCT((E$1:E93=E94)*(D$1:D93<999))>0,999,ROW()))","v":999},"покупатель93","Заказ раз в 7 дней; \nПолучение оборотки каждый четверг; \nЧто-то каждые 9 дней; \nЕщё что-то 10 числа каждого месяца",7,"четверг",9,10," ",null,null," ",null," ",null," "]
[null," ","менеджер1",{"$f":"IF(ISERR(SEARCH($O$1,C95)),999,IF(SUMPRODUCT((E$1:E94=E95)*(D$1:D94<999))>0,999,ROW()))","v":999},"покупатель94","Заказ раз в 14 дней; \nПолучение оборотки каждый пятница; \nЧто-то каждые 16 дней; \nЕщё что-то 17 числа каждого месяца",14,"пятница",16,17," ",null,null," ",null," ",null," "]
[null," ","менеджер4",{"$f":"IF(ISERR(SEARCH($O$1,C96)),999,IF(SUMPRODUCT((E$1:E95=E96)*(D$1:D95<999))>0,999,ROW()))","v":96},"покупатель95","Заказ раз в 21 дней; \nПолучение оборотки каждый суббота; \nЧто-то каждые 23 дней; \nЕщё что-то 24 числа каждого месяца",21,"суббота",23,24," ",null,null," ",null," ",null," "]
[null," ","менеджер15",{"$f":"IF(ISERR(SEARCH($O$1,C97)),999,IF(SUMPRODUCT((E$1:E96=E97)*(D$1:D96<999))>0,999,ROW()))","v":999},"покупатель96","Заказ раз в 28 дней; \nПолучение оборотки каждый воскресенье; \nЧто-то каждые 30 дней; \nЕщё что-то 31 числа каждого месяца",28,"воскресенье",30,31," ",null,null," ",null," ",null," "]
[null," ","менеджер13",{"$f":"IF(ISERR(SEARCH($O$1,C98)),999,IF(SUMPRODUCT((E$1:E97=E98)*(D$1:D97<999))>0,999,ROW()))","v":999},"покупатель97","Заказ раз в 7 дней; \nПолучение оборотки каждый понедельник; \nЧто-то каждые 9 дней; \nЕщё что-то 10 числа каждого месяца",7,"понедельник",9,10," ",null,null," ",null," ",null," "]
[null," ","менеджер6",{"$f":"IF(ISERR(SEARCH($O$1,C99)),999,IF(SUMPRODUCT((E$1:E98=E99)*(D$1:D98<999))>0,999,ROW()))","v":999},"покупатель98","Заказ раз в 14 дней; \nПолучение оборотки каждый вторник; \nЧто-то каждые 16 дней; \nЕщё что-то 17 числа каждого месяца",14,"вторник",16,17," ",null,null," ",null," ",null," "]
[null," ","менеджер4",{"$f":"IF(ISERR(SEARCH($O$1,C100)),999,IF(SUMPRODUCT((E$1:E99=E100)*(D$1:D99<999))>0,999,ROW()))","v":100},"покупатель99","Заказ раз в 21 дней; \nПолучение оборотки каждый среда; \nЧто-то каждые 23 дней; \nЕщё что-то 24 числа каждого месяца",21,"среда",23,24," ",null,null," ",null," ",null," "]
[null," ","менеджер2",{"$f":"IF(ISERR(SEARCH($O$1,C101)),999,IF(SUMPRODUCT((E$1:E100=E101)*(D$1:D100<999))>0,999,ROW()))","v":999},"покупатель100","Заказ раз в 28 дней; \nПолучение оборотки каждый четверг; \nЧто-то каждые 30 дней; \nЕщё что-то 31 числа каждого месяца",28,"четверг",30,31," ",null,null," ",null," ",null," "]
[null," ","менеджер20",{"$f":"IF(ISERR(SEARCH($O$1,C102)),999,IF(SUMPRODUCT((E$1:E101=E102)*(D$1:D101<999))>0,999,ROW()))","v":999},"покупатель101","Заказ раз в 7 дней; \nПолучение оборотки каждый пятница; \nЧто-то каждые 9 дней; \nЕщё что-то 10 числа каждого месяца",7,"пятница",9,10," ",null,null," ",null," ",null," "]
[null," ","менеджер20",{"$f":"IF(ISERR(SEARCH($O$1,C103)),999,IF(SUMPRODUCT((E$1:E102=E103)*(D$1:D102<999))>0,999,ROW()))","v":999},"покупатель102","Заказ раз в 14 дней; \nПолучение оборотки каждый суббота; \nЧто-то каждые 16 дней; \nЕщё что-то 17 числа каждого месяца",14,"суббота",16,17," ",null,null," ",null," ",null," "]
[null," ","менеджер8",{"$f":"IF(ISERR(SEARCH($O$1,C104)),999,IF(SUMPRODUCT((E$1:E103=E104)*(D$1:D103<999))>0,999,ROW()))","v":999},"покупатель103","Заказ раз в 21 дней; \nПолучение оборотки каждый воскресенье; \nЧто-то каждые 23 дней; \nЕщё что-то 24 числа каждого месяца",21,"воскресенье",23,24," ",null,null," ",null," ",null," "]
[null," ","менеджер6",{"$f":"IF(ISERR(SEARCH($O$1,C105)),999,IF(SUMPRODUCT((E$1:E104=E105)*(D$1:D104<999))>0,999,ROW()))","v":999},"покупатель104","Заказ раз в 28 дней; \nПолучение оборотки каждый понедельник; \nЧто-то каждые 30 дней; \nЕщё что-то 31 числа каждого месяца",28,"понедельник",30,31," ",null,null," ",null," ",null," "]
[null," ","менеджер17",{"$f":"IF(ISERR(SEARCH($O$1,C106)),999,IF(SUMPRODUCT((E$1:E105=E106)*(D$1:D105<999))>0,999,ROW()))","v":999},"покупатель105","Заказ раз в 7 дней; \nПолучение оборотки каждый вторник; \nЧто-то каждые 9 дней; \nЕщё что-то 10 числа каждого месяца",7,"вторник",9,10," ",null,null," ",null," ",null," "]
[null," ","менеджер1",{"$f":"IF(ISERR(SEARCH($O$1,C107)),999,IF(SUMPRODUCT((E$1:E106=E107)*(D$1:D106<999))>0,999,ROW()))","v":999},"покупатель106","Заказ раз в 14 дней; \nПолучение оборотки каждый среда; \nЧто-то каждые 16 дней; \nЕщё что-то 17 числа каждого месяца",14,"среда",16,17," ",null,null," ",null," ",null," "]
[null," ","менеджер3",{"$f":"IF(ISERR(SEARCH($O$1,C108)),999,IF(SUMPRODUCT((E$1:E107=E108)*(D$1:D107<999))>0,999,ROW()))","v":999},"покупатель107","Заказ раз в 21 дней; \nПолучение оборотки каждый четверг; \nЧто-то каждые 23 дней; \nЕщё что-то 24 числа каждого месяца",21,"четверг",23,24," ",null,null," ",null," ",null," "]
[null," ","менеджер6",{"$f":"IF(ISERR(SEARCH($O$1,C109)),999,IF(SUMPRODUCT((E$1:E108=E109)*(D$1:D108<999))>0,999,ROW()))","v":999},"покупатель108","Заказ раз в 28 дней; \nПолучение оборотки каждый пятница; \nЧто-то каждые 30 дней; \nЕщё что-то 31 числа каждого месяца",28,"пятница",30,31," ",null,null," ",null," ",null," "]
[null," ","менеджер6",{"$f":"IF(ISERR(SEARCH($O$1,C110)),999,IF(SUMPRODUCT((E$1:E109=E110)*(D$1:D109<999))>0,999,ROW()))","v":999},"покупатель109","Заказ раз в 7 дней; \nПолучение оборотки каждый суббота; \nЧто-то каждые 9 дней; \nЕщё что-то 10 числа каждого месяца",7,"суббота",9,10," ",null,null," ",null," ",null," "]
[null," ","менеджер3",{"$f":"IF(ISERR(SEARCH($O$1,C111)),999,IF(SUMPRODUCT((E$1:E110=E111)*(D$1:D110<999))>0,999,ROW()))","v":999},"покупатель110","Заказ раз в 14 дней; \nПолучение оборотки каждый воскресенье; \nЧто-то каждые 16 дней; \nЕщё что-то 17 числа каждого месяца",14,"воскресенье",16,17," ",null,null," ",null," ",null," "]
[null," ","менеджер2",{"$f":"IF(ISERR(SEARCH($O$1,C112)),999,IF(SUMPRODUCT((E$1:E111=E112)*(D$1:D111<999))>0,999,ROW()))","v":999},"покупатель111","Заказ раз в 21 дней; \nПолучение оборотки каждый понедельник; \nЧто-то каждые 23 дней; \nЕщё что-то 24 числа каждого месяца",21,"понедельник",23,24," ",null,null," ",null," ",null," "]
[null," ","менеджер7",{"$f":"IF(ISERR(SEARCH($O$1,C113)),999,IF(SUMPRODUCT((E$1:E112=E113)*(D$1:D112<999))>0,999,ROW()))","v":999},"покупатель112","Заказ раз в 28 дней; \nПолучение оборотки каждый вторник; \nЧто-то каждые 30 дней; \nЕщё что-то 31 числа каждого месяца",28,"вторник",30,31," ",null,null," ",null," ",null," "]
[null," ","менеджер18",{"$f":"IF(ISERR(SEARCH($O$1,C114)),999,IF(SUMPRODUCT((E$1:E113=E114)*(D$1:D113<999))>0,999,ROW()))","v":999},"покупатель113","Заказ раз в 7 дней; \nПолучение оборотки каждый среда; \nЧто-то каждые 9 дней; \nЕщё что-то 10 числа каждого месяца",7,"среда",9,10," ",null,null," ",null," ",null," "]
[null," ","менеджер17",{"$f":"IF(ISERR(SEARCH($O$1,C115)),999,IF(SUMPRODUCT((E$1:E114=E115)*(D$1:D114<999))>0,999,ROW()))","v":999},"покупатель114","Заказ раз в 14 дней; \nПолучение оборотки каждый четверг; \nЧто-то каждые 16 дней; \nЕщё что-то 17 числа каждого месяца",14,"четверг",16,17," ",null,null," ",null," ",null," "]
[null," ","менеджер18",{"$f":"IF(ISERR(SEARCH($O$1,C116)),999,IF(SUMPRODUCT((E$1:E115=E116)*(D$1:D115<999))>0,999,ROW()))","v":999},"покупатель115","Заказ раз в 21 дней; \nПолучение оборотки каждый пятница; \nЧто-то каждые 23 дней; \nЕщё что-то 24 числа каждого месяца",21,"пятница",23,24," ",null,null," ",null," ",null," "]
[null," ","менеджер13",{"$f":"IF(ISERR(SEARCH($O$1,C117)),999,IF(SUMPRODUCT((E$1:E116=E117)*(D$1:D116<999))>0,999,ROW()))","v":999},"покупатель116","Заказ раз в 28 дней; \nПолучение оборотки каждый суббота; \nЧто-то каждые 30 дней; \nЕщё что-то 31 числа каждого месяца",28,"суббота",30,31," ",null,null," ",null," ",null," "]
[null," ","менеджер3",{"$f":"IF(ISERR(SEARCH($O$1,C118)),999,IF(SUMPRODUCT((E$1:E117=E118)*(D$1:D117<999))>0,999,ROW()))","v":999},"покупатель117","Заказ раз в 7 дней; \nПолучение оборотки каждый воскресенье; \nЧто-то каждые 9 дней; \nЕщё что-то 10 числа каждого месяца",7,"воскресенье",9,10," ",null,null," ",null," ",null," "]
[null," ","менеджер20",{"$f":"IF(ISERR(SEARCH($O$1,C119)),999,IF(SUMPRODUCT((E$1:E118=E119)*(D$1:D118<999))>0,999,ROW()))","v":999},"покупатель118","Заказ раз в 14 дней; \nПолучение оборотки каждый понедельник; \nЧто-то каждые 16 дней; \nЕщё что-то 17 числа каждого месяца",14,"понедельник",16,17," ",null,null," ",null," ",null," "]
[null," ","менеджер18",{"$f":"IF(ISERR(SEARCH($O$1,C120)),999,IF(SUMPRODUCT((E$1:E119=E120)*(D$1:D119<999))>0,999,ROW()))","v":999},"покупатель119","Заказ раз в 21 дней; \nПолучение оборотки каждый вторник; \nЧто-то каждые 23 дней; \nЕщё что-то 24 числа каждого месяца",21,"вторник",23,24," ",null,null," ",null," ",null," "]
[null," ","менеджер6",{"$f":"IF(ISERR(SEARCH($O$1,C121)),999,IF(SUMPRODUCT((E$1:E120=E121)*(D$1:D120<999))>0,999,ROW()))","v":999},"покупатель120","Заказ раз в 28 дней; \nПолучение оборотки каждый среда; \nЧто-то каждые 30 дней; \nЕщё что-то 31 числа каждого месяца",28,"среда",30,31," ",null,null," ",null," ",null," "]
[null," ","менеджер18",{"$f":"IF(ISERR(SEARCH($O$1,C122)),999,IF(SUMPRODUCT((E$1:E121=E122)*(D$1:D121<999))>0,999,ROW()))","v":999},"покупатель121","Заказ раз в 7 дней; \nПолучение оборотки каждый четверг; \nЧто-то каждые 9 дней; \nЕщё что-то 10 числа каждого месяца",7,"четверг",9,10," ",null,null," ",null," ",null," "]
[null," ","менеджер6",{"$f":"IF(ISERR(SEARCH($O$1,C123)),999,IF(SUMPRODUCT((E$1:E122=E123)*(D$1:D122<999))>0,999,ROW()))","v":999},"покупатель122","Заказ раз в 14 дней; \nПолучение оборотки каждый пятница; \nЧто-то каждые 16 дней; \nЕщё что-то 17 числа каждого месяца",14,"пятница",16,17," ",null,null," ",null," ",null," "]
[null," ","менеджер5",{"$f":"IF(ISERR(SEARCH($O$1,C124)),999,IF(SUMPRODUCT((E$1:E123=E124)*(D$1:D123<999))>0,999,ROW()))","v":999},"покупатель123","Заказ раз в 21 дней; \nПолучение оборотки каждый суббота; \nЧто-то каждые 23 дней; \nЕщё что-то 24 числа каждого месяца",21,"суббота",23,24," ",null,null," ",null," ",null," "]
[null," ","менеджер8",{"$f":"IF(ISERR(SEARCH($O$1,C125)),999,IF(SUMPRODUCT((E$1:E124=E125)*(D$1:D124<999))>0,999,ROW()))","v":999},"покупатель124","Заказ раз в 28 дней; \nПолучение оборотки каждый воскресенье; \nЧто-то каждые 30 дней; \nЕщё что-то 31 числа каждого месяца",28,"воскресенье",30,31," ",null,null," ",null," ",null," "]
[null," ","менеджер7",{"$f":"IF(ISERR(SEARCH($O$1,C126)),999,IF(SUMPRODUCT((E$1:E125=E126)*(D$1:D125<999))>0,999,ROW()))","v":999},"покупатель125","Заказ раз в 7 дней; \nПолучение оборотки каждый понедельник; \nЧто-то каждые 9 дней; \nЕщё что-то 10 числа каждого месяца",7,"понедельник",9,10," ",null,null," ",null," ",null," "]
[null," ","менеджер7",{"$f":"IF(ISERR(SEARCH($O$1,C127)),999,IF(SUMPRODUCT((E$1:E126=E127)*(D$1:D126<999))>0,999,ROW()))","v":999},"покупатель126","Заказ раз в 14 дней; \nПолучение оборотки каждый вторник; \nЧто-то каждые 16 дней; \nЕщё что-то 17 числа каждого месяца",14,"вторник",16,17," ",null,null," ",null," ",null," "]
[null," ","менеджер8",{"$f":"IF(ISERR(SEARCH($O$1,C128)),999,IF(SUMPRODUCT((E$1:E127=E128)*(D$1:D127<999))>0,999,ROW()))","v":999},"покупатель127","Заказ раз в 21 дней; \nПолучение оборотки каждый среда; \nЧто-то каждые 23 дней; \nЕщё что-то 24 числа каждого месяца",21,"среда",23,24," ",null,null," ",null," ",null," "]
[null," ","менеджер4",{"$f":"IF(ISERR(SEARCH($O$1,C129)),999,IF(SUMPRODUCT((E$1:E128=E129)*(D$1:D128<999))>0,999,ROW()))","v":129},"покупатель128","Заказ раз в 28 дней; \nПолучение оборотки каждый четверг; \nЧто-то каждые 30 дней; \nЕщё что-то 31 числа каждого месяца",28,"четверг",30,31," ",null,null," ",null," ",null," "]
[null," ","менеджер20",{"$f":"IF(ISERR(SEARCH($O$1,C130)),999,IF(SUMPRODUCT((E$1:E129=E130)*(D$1:D129<999))>0,999,ROW()))","v":999},"покупатель129",{"$f":"IF(G130=0,\"\",SUBSTITUTE(G$1,\"ёё\",G130)&шб)&IF(H130=0,\"\",SUBSTITUTE(H$1,\"ёё\",H130)&шб)&IF(I130=0,\"\",SUBSTITUTE(I$1,\"ёё\",I130)&шб)&IF(J130=0,\"\",SUBSTITUTE(J$1,\"ёё\",J130))","v":"Заказ раз в 7 дней; \nПолучение оборотки каждый пятница; \nЧто-то каждые 9 дней; \nЕщё что-то 10 числа каждого месяца"},7,"пятница",9,10," ",null,null," ",null," ",null," "]
[null," ","менеджер4",{"$f":"IF(ISERR(SEARCH($O$1,C131)),999,IF(SUMPRODUCT((E$1:E130=E131)*(D$1:D130<999))>0,999,ROW()))","v":131},"покупатель130","Заказ раз в 14 дней; \nПолучение оборотки каждый суббота; \nЧто-то каждые 16 дней; \nЕщё что-то 17 числа каждого месяца",14,{"$f":"TEXT(TODAY()+ROW(),\"ДДДД\")","v":"суббота"},16,17," ",null,null," ",null," ",null," "]
[null," ","менеджер21",{"$f":"IF(ISERR(SEARCH($O$1,C132)),999,IF(SUMPRODUCT((E$1:E131=E132)*(D$1:D131<999))>0,999,ROW()))","v":999},"покупатель131","Заказ раз в 21 дней; \nПолучение оборотки каждый воскресенье; \nЧто-то каждые 23 дней; \nЕщё что-то 24 числа каждого месяца",21,"воскресенье",23,24," ",null,null," ",null," ",null," "]
[null," ","менеджер16",{"$f":"IF(ISERR(SEARCH($O$1,C133)),999,IF(SUMPRODUCT((E$1:E132=E133)*(D$1:D132<999))>0,999,ROW()))","v":999},"покупатель132","Заказ раз в 28 дней; \nПолучение оборотки каждый понедельник; \nЧто-то каждые 30 дней; \nЕщё что-то 31 числа каждого месяца",28,"понедельник",30,31," ",null,null," ",null," ",null," "]
[null," ","менеджер6",{"$f":"IF(ISERR(SEARCH($O$1,C134)),999,IF(SUMPRODUCT((E$1:E133=E134)*(D$1:D133<999))>0,999,ROW()))","v":999},"покупатель133","Заказ раз в 7 дней; \nПолучение оборотки каждый вторник; \nЧто-то каждые 9 дней; \nЕщё что-то 10 числа каждого месяца",7,"вторник",9,10," ",null,null," ",null," ",null," "]
[null," ","менеджер22",{"$f":"IF(ISERR(SEARCH($O$1,C135)),999,IF(SUMPRODUCT((E$1:E134=E135)*(D$1:D134<999))>0,999,ROW()))","v":999},"покупатель134","Заказ раз в 14 дней; \nПолучение оборотки каждый среда; \nЧто-то каждые 16 дней; \nЕщё что-то 17 числа каждого месяца",14,"среда",16,17," ",null,null," ",null," ",null," "]
[null," ","менеджер13",{"$f":"IF(ISERR(SEARCH($O$1,C136)),999,IF(SUMPRODUCT((E$1:E135=E136)*(D$1:D135<999))>0,999,ROW()))","v":999},"покупатель135","Заказ раз в 21 дней; \nПолучение оборотки каждый четверг; \nЧто-то каждые 23 дней; \nЕщё что-то 24 числа каждого месяца",21,"четверг",23,24," ",null,null," ",null," ",null," "]
[null," ","менеджер5",{"$f":"IF(ISERR(SEARCH($O$1,C137)),999,IF(SUMPRODUCT((E$1:E136=E137)*(D$1:D136<999))>0,999,ROW()))","v":999},"покупатель136","Заказ раз в 28 дней; \nПолучение оборотки каждый пятница; \nЧто-то каждые 30 дней; \nЕщё что-то 31 числа каждого месяца",28,"пятница",30,31," ",null,null," ",null," ",null," "]
[null," ","менеджер2",{"$f":"IF(ISERR(SEARCH($O$1,C138)),999,IF(SUMPRODUCT((E$1:E137=E138)*(D$1:D137<999))>0,999,ROW()))","v":999},"покупатель137","Заказ раз в 7 дней; \nПолучение оборотки каждый суббота; \nЧто-то каждые 9 дней; \nЕщё что-то 10 числа каждого месяца",7,"суббота",9,10," ",null,null," ",null," ",null," "]
[null," ","менеджер18",{"$f":"IF(ISERR(SEARCH($O$1,C139)),999,IF(SUMPRODUCT((E$1:E138=E139)*(D$1:D138<999))>0,999,ROW()))","v":999},"покупатель138","Заказ раз в 14 дней; \nПолучение оборотки каждый воскресенье; \nЧто-то каждые 16 дней; \nЕщё что-то 17 числа каждого месяца",14,"воскресенье",16,17," ",null,null," ",null," ",null," "]
[null," ","менеджер8",{"$f":"IF(ISERR(SEARCH($O$1,C140)),999,IF(SUMPRODUCT((E$1:E139=E140)*(D$1:D139<999))>0,999,ROW()))","v":999},"покупатель139","Заказ раз в 21 дней; \nПолучение оборотки каждый понедельник; \nЧто-то каждые 23 дней; \nЕщё что-то 24 числа каждого месяца",21,"понедельник",23,24," ",null,null," ",null," ",null," "]
[null," ","менеджер18",{"$f":"IF(ISERR(SEARCH($O$1,C141)),999,IF(SUMPRODUCT((E$1:E140=E141)*(D$1:D140<999))>0,999,ROW()))","v":999},"покупатель140","Заказ раз в 28 дней; \nПолучение оборотки каждый вторник; \nЧто-то каждые 30 дней; \nЕщё что-то 31 числа каждого месяца",28,"вторник",30,31," ",null,null," ",null," ",null," "]
[null," ","менеджер18",{"$f":"IF(ISERR(SEARCH($O$1,C142)),999,IF(SUMPRODUCT((E$1:E141=E142)*(D$1:D141<999))>0,999,ROW()))","v":999},"покупатель141","Заказ раз в 7 дней; \nПолучение оборотки каждый среда; \nЧто-то каждые 9 дней; \nЕщё что-то 10 числа каждого месяца",7,"среда",9,10," ",null,null," ",null," ",null," "]
[null," ","менеджер6",{"$f":"IF(ISERR(SEARCH($O$1,C143)),999,IF(SUMPRODUCT((E$1:E142=E143)*(D$1:D142<999))>0,999,ROW()))","v":999},"покупатель142","Заказ раз в 14 дней; \nПолучение оборотки каждый четверг; \nЧто-то каждые 16 дней; \nЕщё что-то 17 числа каждого месяца",14,"четверг",16,17," ",null,null," ",null," ",null," "]
[null," ","менеджер2",{"$f":"IF(ISERR(SEARCH($O$1,C144)),999,IF(SUMPRODUCT((E$1:E143=E144)*(D$1:D143<999))>0,999,ROW()))","v":999},"покупатель143","Заказ раз в 21 дней; \nПолучение оборотки каждый пятница; \nЧто-то каждые 23 дней; \nЕщё что-то 24 числа каждого месяца",21,"пятница",23,24," ",null,null," ",null," ",null," "]
[null," ","менеджер8",{"$f":"IF(ISERR(SEARCH($O$1,C145)),999,IF(SUMPRODUCT((E$1:E144=E145)*(D$1:D144<999))>0,999,ROW()))","v":999},"покупатель144","Заказ раз в 28 дней; \nПолучение оборотки каждый суббота; \nЧто-то каждые 30 дней; \nЕщё что-то 31 числа каждого месяца",28,"суббота",30,31," ",null,null," ",null," ",null," "]
[null," ","менеджер9",{"$f":"IF(ISERR(SEARCH($O$1,C146)),999,IF(SUMPRODUCT((E$1:E145=E146)*(D$1:D145<999))>0,999,ROW()))","v":999},"покупатель145","Заказ раз в 7 дней; \nПолучение оборотки каждый воскресенье; \nЧто-то каждые 9 дней; \nЕщё что-то 10 числа каждого месяца",7,"воскресенье",9,10," ",null,null," ",null," ",null," "]
[null," ","менеджер6",{"$f":"IF(ISERR(SEARCH($O$1,C147)),999,IF(SUMPRODUCT((E$1:E146=E147)*(D$1:D146<999))>0,999,ROW()))","v":999},"покупатель146","Заказ раз в 14 дней; \nПолучение оборотки каждый понедельник; \nЧто-то каждые 16 дней; \nЕщё что-то 17 числа каждого месяца",14,"понедельник",16,17," ",null,null," ",null," ",null," "]
[null," ","менеджер1",{"$f":"IF(ISERR(SEARCH($O$1,C148)),999,IF(SUMPRODUCT((E$1:E147=E148)*(D$1:D147<999))>0,999,ROW()))","v":999},"покупатель147","Заказ раз в 21 дней; \nПолучение оборотки каждый вторник; \nЧто-то каждые 23 дней; \nЕщё что-то 24 числа каждого месяца",21,"вторник",23,24," ",null,null," ",null," ",null," "]
[null," ","менеджер21",{"$f":"IF(ISERR(SEARCH($O$1,C149)),999,IF(SUMPRODUCT((E$1:E148=E149)*(D$1:D148<999))>0,999,ROW()))","v":999},"покупатель148","Заказ раз в 28 дней; \nПолучение оборотки каждый среда; \nЧто-то каждые 30 дней; \nЕщё что-то 31 числа каждого месяца",28,"среда",30,31," ",null,null," ",null," ",null," "]
[null," ","менеджер8",{"$f":"IF(ISERR(SEARCH($O$1,C150)),999,IF(SUMPRODUCT((E$1:E149=E150)*(D$1:D149<999))>0,999,ROW()))","v":999},"покупатель149","Заказ раз в 7 дней; \nПолучение оборотки каждый четверг; \nЧто-то каждые 9 дней; \nЕщё что-то 10 числа каждого месяца",7,"четверг",9,10," ",null,null," ",null," ",null," "]
[null," ","менеджер18",{"$f":"IF(ISERR(SEARCH($O$1,C151)),999,IF(SUMPRODUCT((E$1:E150=E151)*(D$1:D150<999))>0,999,ROW()))","v":999},"покупатель150","Заказ раз в 14 дней; \nПолучение оборотки каждый пятница; \nЧто-то каждые 16 дней; \nЕщё что-то 17 числа каждого месяца",14,"пятница",16,17," ",null,null," ",null," ",null," "]
[null," ","менеджер4",{"$f":"IF(ISERR(SEARCH($O$1,C152)),999,IF(SUMPRODUCT((E$1:E151=E152)*(D$1:D151<999))>0,999,ROW()))","v":152},"покупатель151","Заказ раз в 21 дней; \nПолучение оборотки каждый суббота; \nЧто-то каждые 23 дней; \nЕщё что-то 24 числа каждого месяца",21,"суббота",23,24," ",null,null," ",null," ",null," "]
[null," ","менеджер3",{"$f":"IF(ISERR(SEARCH($O$1,C153)),999,IF(SUMPRODUCT((E$1:E152=E153)*(D$1:D152<999))>0,999,ROW()))","v":999},"покупатель152","Заказ раз в 28 дней; \nПолучение оборотки каждый воскресенье; \nЧто-то каждые 30 дней; \nЕщё что-то 31 числа каждого месяца",28,"воскресенье",30,31," ",null,null," ",null," ",null," "]
[null," ","менеджер7",{"$f":"IF(ISERR(SEARCH($O$1,C154)),999,IF(SUMPRODUCT((E$1:E153=E154)*(D$1:D153<999))>0,999,ROW()))","v":999},"покупатель153","Заказ раз в 7 дней; \nПолучение оборотки каждый понедельник; \nЧто-то каждые 9 дней; \nЕщё что-то 10 числа каждого месяца",7,"понедельник",9,10," ",null,null," ",null," ",null," "]
[null," ","менеджер15",{"$f":"IF(ISERR(SEARCH($O$1,C155)),999,IF(SUMPRODUCT((E$1:E154=E155)*(D$1:D154<999))>0,999,ROW()))","v":999},"покупатель154","Заказ раз в 14 дней; \nПолучение оборотки каждый вторник; \nЧто-то каждые 16 дней; \nЕщё что-то 17 числа каждого месяца",14,"вторник",16,17," ",null,null," ",null," ",null," "]
[null," ","менеджер7",{"$f":"IF(ISERR(SEARCH($O$1,C156)),999,IF(SUMPRODUCT((E$1:E155=E156)*(D$1:D155<999))>0,999,ROW()))","v":999},"покупатель155","Заказ раз в 21 дней; \nПолучение оборотки каждый среда; \nЧто-то каждые 23 дней; \nЕщё что-то 24 числа каждого месяца",21,"среда",23,24," ",null,null," ",null," ",null," "]
[null," ","менеджер2",{"$f":"IF(ISERR(SEARCH($O$1,C157)),999,IF(SUMPRODUCT((E$1:E156=E157)*(D$1:D156<999))>0,999,ROW()))","v":999},"покупатель156","Заказ раз в 28 дней; \nПолучение оборотки каждый четверг; \nЧто-то каждые 30 дней; \nЕщё что-то 31 числа каждого месяца",28,"четверг",30,31," ",null,null," ",null," ",null," "]
[null," ","менеджер18",{"$f":"IF(ISERR(SEARCH($O$1,C158)),999,IF(SUMPRODUCT((E$1:E157=E158)*(D$1:D157<999))>0,999,ROW()))","v":999},"покупатель157","Заказ раз в 7 дней; \nПолучение оборотки каждый пятница; \nЧто-то каждые 9 дней; \nЕщё что-то 10 числа каждого месяца",7,"пятница",9,10," ",null,null," ",null," ",null," "]
[null," ","менеджер23",{"$f":"IF(ISERR(SEARCH($O$1,C159)),999,IF(SUMPRODUCT((E$1:E158=E159)*(D$1:D158<999))>0,999,ROW()))","v":999},"покупатель158","Заказ раз в 14 дней; \nПолучение оборотки каждый суббота; \nЧто-то каждые 16 дней; \nЕщё что-то 17 числа каждого месяца",14,"суббота",16,17," ",null,null," ",null," ",null," "]
[null," ","менеджер1",{"$f":"IF(ISERR(SEARCH($O$1,C160)),999,IF(SUMPRODUCT((E$1:E159=E160)*(D$1:D159<999))>0,999,ROW()))","v":999},"покупатель159","Заказ раз в 21 дней; \nПолучение оборотки каждый воскресенье; \nЧто-то каждые 23 дней; \nЕщё что-то 24 числа каждого месяца",21,"воскресенье",23,24," ",null,null," ",null," ",null," "]
[null," ","менеджер1",{"$f":"IF(ISERR(SEARCH($O$1,C161)),999,IF(SUMPRODUCT((E$1:E160=E161)*(D$1:D160<999))>0,999,ROW()))","v":999},"покупатель160","Заказ раз в 28 дней; \nПолучение оборотки каждый понедельник; \nЧто-то каждые 30 дней; \nЕщё что-то 31 числа каждого месяца",28,"понедельник",30,31," ",null,null," ",null," ",null," "]
[null," ","менеджер1",{"$f":"IF(ISERR(SEARCH($O$1,C162)),999,IF(SUMPRODUCT((E$1:E161=E162)*(D$1:D161<999))>0,999,ROW()))","v":999},"покупатель161","Заказ раз в 7 дней; \nПолучение оборотки каждый вторник; \nЧто-то каждые 9 дней; \nЕщё что-то 10 числа каждого месяца",7,"вторник",9,10," ",null,null," ",null," ",null," "]
[null," ","менеджер6",{"$f":"IF(ISERR(SEARCH($O$1,C163)),999,IF(SUMPRODUCT((E$1:E162=E163)*(D$1:D162<999))>0,999,ROW()))","v":999},"покупатель162","Заказ раз в 14 дней; \nПолучение оборотки каждый среда; \nЧто-то каждые 16 дней; \nЕщё что-то 17 числа каждого месяца",14,"среда",16,17," ",null,null," ",null," ",null," "]
[null," ","менеджер2",{"$f":"IF(ISERR(SEARCH($O$1,C164)),999,IF(SUMPRODUCT((E$1:E163=E164)*(D$1:D163<999))>0,999,ROW()))","v":999},"покупатель163","Заказ раз в 21 дней; \nПолучение оборотки каждый четверг; \nЧто-то каждые 23 дней; \nЕщё что-то 24 числа каждого месяца",21,"четверг",23,24," ",null,null," ",null," ",null," "]
[null," ","менеджер21",{"$f":"IF(ISERR(SEARCH($O$1,C165)),999,IF(SUMPRODUCT((E$1:E164=E165)*(D$1:D164<999))>0,999,ROW()))","v":999},"покупатель164","Заказ раз в 28 дней; \nПолучение оборотки каждый пятница; \nЧто-то каждые 30 дней; \nЕщё что-то 31 числа каждого месяца",28,"пятница",30,31," ",null,null," ",null," ",null," "]
[null," ","менеджер6",{"$f":"IF(ISERR(SEARCH($O$1,C166)),999,IF(SUMPRODUCT((E$1:E165=E166)*(D$1:D165<999))>0,999,ROW()))","v":999},"покупатель165","Заказ раз в 7 дней; \nПолучение оборотки каждый суббота; \nЧто-то каждые 9 дней; \nЕщё что-то 10 числа каждого месяца",7,"суббота",9,10," ",null,null," ",null," ",null," "]
[null," ","менеджер21",{"$f":"IF(ISERR(SEARCH($O$1,C167)),999,IF(SUMPRODUCT((E$1:E166=E167)*(D$1:D166<999))>0,999,ROW()))","v":999},"покупатель166","Заказ раз в 14 дней; \nПолучение оборотки каждый воскресенье; \nЧто-то каждые 16 дней; \nЕщё что-то 17 числа каждого месяца",14,"воскресенье",16,17," ",null,null," ",null," ",null," "]
[null," ","менеджер6",{"$f":"IF(ISERR(SEARCH($O$1,C168)),999,IF(SUMPRODUCT((E$1:E167=E168)*(D$1:D167<999))>0,999,ROW()))","v":999},"покупатель167","Заказ раз в 21 дней; \nПолучение оборотки каждый понедельник; \nЧто-то каждые 23 дней; \nЕщё что-то 24 числа каждого месяца",21,"понедельник",23,24," ",null,null," ",null," ",null," "]
[null," ","менеджер6",{"$f":"IF(ISERR(SEARCH($O$1,C169)),999,IF(SUMPRODUCT((E$1:E168=E169)*(D$1:D168<999))>0,999,ROW()))","v":999},"покупатель168","Заказ раз в 28 дней; \nПолучение оборотки каждый вторник; \nЧто-то каждые 30 дней; \nЕщё что-то 31 числа каждого месяца",28,"вторник",30,31," ",null,null," ",null," ",null," "]
[null," ","менеджер3",{"$f":"IF(ISERR(SEARCH($O$1,C170)),999,IF(SUMPRODUCT((E$1:E169=E170)*(D$1:D169<999))>0,999,ROW()))","v":999},"покупатель169","Заказ раз в 7 дней; \nПолучение оборотки каждый среда; \nЧто-то каждые 9 дней; \nЕщё что-то 10 числа каждого месяца",7,"среда",9,10," ",null,null," ",null," ",null," "]
[null," ","менеджер2",{"$f":"IF(ISERR(SEARCH($O$1,C171)),999,IF(SUMPRODUCT((E$1:E170=E171)*(D$1:D170<999))>0,999,ROW()))","v":999},"покупатель170","Заказ раз в 14 дней; \nПолучение оборотки каждый четверг; \nЧто-то каждые 16 дней; \nЕщё что-то 17 числа каждого месяца",14,"четверг",16,17," ",null,null," ",null," ",null," "]
[null," ","менеджер18",{"$f":"IF(ISERR(SEARCH($O$1,C172)),999,IF(SUMPRODUCT((E$1:E171=E172)*(D$1:D171<999))>0,999,ROW()))","v":999},"покупатель171","Заказ раз в 21 дней; \nПолучение оборотки каждый пятница; \nЧто-то каждые 23 дней; \nЕщё что-то 24 числа каждого месяца",21,"пятница",23,24," ",null,null," ",null," ",null," "]
[null," ","менеджер7",{"$f":"IF(ISERR(SEARCH($O$1,C173)),999,IF(SUMPRODUCT((E$1:E172=E173)*(D$1:D172<999))>0,999,ROW()))","v":999},"покупатель172","Заказ раз в 28 дней; \nПолучение оборотки каждый суббота; \nЧто-то каждые 30 дней; \nЕщё что-то 31 числа каждого месяца",28,"суббота",30,31," ",null,null," ",null," ",null," "]
[null," ","менеджер4",{"$f":"IF(ISERR(SEARCH($O$1,C174)),999,IF(SUMPRODUCT((E$1:E173=E174)*(D$1:D173<999))>0,999,ROW()))","v":174},"покупатель173","Заказ раз в 7 дней; \nПолучение оборотки каждый воскресенье; \nЧто-то каждые 9 дней; \nЕщё что-то 10 числа каждого месяца",7,"воскресенье",9,10," ",null,null," ",null," ",null," "]
[null," ","менеджер1",{"$f":"IF(ISERR(SEARCH($O$1,C175)),999,IF(SUMPRODUCT((E$1:E174=E175)*(D$1:D174<999))>0,999,ROW()))","v":999},"покупатель174","Заказ раз в 14 дней; \nПолучение оборотки каждый понедельник; \nЧто-то каждые 16 дней; \nЕщё что-то 17 числа каждого месяца",14,"понедельник",16,17," ",null,null," ",null," ",null," "]
[null," ","менеджер18",{"$f":"IF(ISERR(SEARCH($O$1,C176)),999,IF(SUMPRODUCT((E$1:E175=E176)*(D$1:D175<999))>0,999,ROW()))","v":999},"покупатель175","Заказ раз в 21 дней; \nПолучение оборотки каждый вторник; \nЧто-то каждые 23 дней; \nЕщё что-то 24 числа каждого месяца",21,"вторник",23,24," ",null,null," ",null," ",null," "]
[null," ","менеджер3",{"$f":"IF(ISERR(SEARCH($O$1,C177)),999,IF(SUMPRODUCT((E$1:E176=E177)*(D$1:D176<999))>0,999,ROW()))","v":999},"покупатель176","Заказ раз в 28 дней; \nПолучение оборотки каждый среда; \nЧто-то каждые 30 дней; \nЕщё что-то 31 числа каждого месяца",28,"среда",30,31," ",null,null," ",null," ",null," "]
[null," ","менеджер4",{"$f":"IF(ISERR(SEARCH($O$1,C178)),999,IF(SUMPRODUCT((E$1:E177=E178)*(D$1:D177<999))>0,999,ROW()))","v":178},"покупатель177","Заказ раз в 7 дней; \nПолучение оборотки каждый четверг; \nЧто-то каждые 9 дней; \nЕщё что-то 10 числа каждого месяца",7,"четверг",9,10," ",null,null," ",null," ",null," "]
[null," ","менеджер6",{"$f":"IF(ISERR(SEARCH($O$1,C179)),999,IF(SUMPRODUCT((E$1:E178=E179)*(D$1:D178<999))>0,999,ROW()))","v":999},"покупатель178","Заказ раз в 14 дней; \nПолучение оборотки каждый пятница; \nЧто-то каждые 16 дней; \nЕщё что-то 17 числа каждого месяца",14,"пятница",16,17," ",null,null," ",null," ",null," "]
[null," ","менеджер4",{"$f":"IF(ISERR(SEARCH($O$1,C180)),999,IF(SUMPRODUCT((E$1:E179=E180)*(D$1:D179<999))>0,999,ROW()))","v":180},"покупатель179","Заказ раз в 21 дней; \nПолучение оборотки каждый суббота; \nЧто-то каждые 23 дней; \nЕщё что-то 24 числа каждого месяца",21,"суббота",23,24," ",null,null," ",null," ",null," "]
[null," ","менеджер3",{"$f":"IF(ISERR(SEARCH($O$1,C181)),999,IF(SUMPRODUCT((E$1:E180=E181)*(D$1:D180<999))>0,999,ROW()))","v":999},"покупатель180","Заказ раз в 28 дней; \nПолучение оборотки каждый воскресенье; \nЧто-то каждые 30 дней; \nЕщё что-то 31 числа каждого месяца",28,"воскресенье",30,31," ",null,null," ",null," ",null," "]
[null," ","менеджер7",{"$f":"IF(ISERR(SEARCH($O$1,C182)),999,IF(SUMPRODUCT((E$1:E181=E182)*(D$1:D181<999))>0,999,ROW()))","v":999},"покупатель181","Заказ раз в 7 дней; \nПолучение оборотки каждый понедельник; \nЧто-то каждые 9 дней; \nЕщё что-то 10 числа каждого месяца",7,"понедельник",9,10," ",null,null," ",null," ",null," "]
[null," ","менеджер24",{"$f":"IF(ISERR(SEARCH($O$1,C183)),999,IF(SUMPRODUCT((E$1:E182=E183)*(D$1:D182<999))>0,999,ROW()))","v":999},"покупатель182","Заказ раз в 14 дней; \nПолучение оборотки каждый вторник; \nЧто-то каждые 16 дней; \nЕщё что-то 17 числа каждого месяца",14,"вторник",16,17," ",null,null," ",null," ",null," "]
[null," ","менеджер18",{"$f":"IF(ISERR(SEARCH($O$1,C184)),999,IF(SUMPRODUCT((E$1:E183=E184)*(D$1:D183<999))>0,999,ROW()))","v":999},"покупатель183","Заказ раз в 21 дней; \nПолучение оборотки каждый среда; \nЧто-то каждые 23 дней; \nЕщё что-то 24 числа каждого месяца",21,"среда",23,24," ",null,null," ",null," ",null," "]
[null," ","менеджер20",{"$f":"IF(ISERR(SEARCH($O$1,C185)),999,IF(SUMPRODUCT((E$1:E184=E185)*(D$1:D184<999))>0,999,ROW()))","v":999},"покупатель184","Заказ раз в 28 дней; \nПолучение оборотки каждый четверг; \nЧто-то каждые 30 дней; \nЕщё что-то 31 числа каждого месяца",28,"четверг",30,31," ",null,null," ",null," ",null," "]
[null," ","менеджер3",{"$f":"IF(ISERR(SEARCH($O$1,C186)),999,IF(SUMPRODUCT((E$1:E185=E186)*(D$1:D185<999))>0,999,ROW()))","v":999},"покупатель185","Заказ раз в 7 дней; \nПолучение оборотки каждый пятница; \nЧто-то каждые 9 дней; \nЕщё что-то 10 числа каждого месяца",7,"пятница",9,10," ",null,null," ",null," ",null," "]
[null," ","менеджер25",{"$f":"IF(ISERR(SEARCH($O$1,C187)),999,IF(SUMPRODUCT((E$1:E186=E187)*(D$1:D186<999))>0,999,ROW()))","v":999},"покупатель186","Заказ раз в 14 дней; \nПолучение оборотки каждый суббота; \nЧто-то каждые 16 дней; \nЕщё что-то 17 числа каждого месяца",14,"суббота",16,17," ",null,null," ",null," ",null," "]
[null," ","менеджер11",{"$f":"IF(ISERR(SEARCH($O$1,C188)),999,IF(SUMPRODUCT((E$1:E187=E188)*(D$1:D187<999))>0,999,ROW()))","v":999},"покупатель187","Заказ раз в 21 дней; \nПолучение оборотки каждый воскресенье; \nЧто-то каждые 23 дней; \nЕщё что-то 24 числа каждого месяца",21,"воскресенье",23,24," ",null,null," ",null," ",null," "]
[null," ","менеджер4",{"$f":"IF(ISERR(SEARCH($O$1,C189)),999,IF(SUMPRODUCT((E$1:E188=E189)*(D$1:D188<999))>0,999,ROW()))","v":189},"покупатель188","Заказ раз в 28 дней; \nПолучение оборотки каждый понедельник; \nЧто-то каждые 30 дней; \nЕщё что-то 31 числа каждого месяца",28,"понедельник",30,31," ",null,null," ",null," ",null," "]
[null," ","менеджер4",{"$f":"IF(ISERR(SEARCH($O$1,C190)),999,IF(SUMPRODUCT((E$1:E189=E190)*(D$1:D189<999))>0,999,ROW()))","v":190},"покупатель189","Заказ раз в 7 дней; \nПолучение оборотки каждый вторник; \nЧто-то каждые 9 дней; \nЕщё что-то 10 числа каждого месяца",7,"вторник",9,10," ",null,null," ",null," ",null," "]
[null," ","менеджер9",{"$f":"IF(ISERR(SEARCH($O$1,C191)),999,IF(SUMPRODUCT((E$1:E190=E191)*(D$1:D190<999))>0,999,ROW()))","v":999},"покупатель190","Заказ раз в 14 дней; \nПолучение оборотки каждый среда; \nЧто-то каждые 16 дней; \nЕщё что-то 17 числа каждого месяца",14,"среда",16,17," ",null,null," ",null," ",null," "]
[null," ","менеджер13",{"$f":"IF(ISERR(SEARCH($O$1,C192)),999,IF(SUMPRODUCT((E$1:E191=E192)*(D$1:D191<999))>0,999,ROW()))","v":999},"покупатель191","Заказ раз в 21 дней; \nПолучение оборотки каждый четверг; \nЧто-то каждые 23 дней; \nЕщё что-то 24 числа каждого месяца",21,"четверг",23,24," ",null,null," ",null," ",null," "]
[null," ","менеджер6",{"$f":"IF(ISERR(SEARCH($O$1,C193)),999,IF(SUMPRODUCT((E$1:E192=E193)*(D$1:D192<999))>0,999,ROW()))","v":999},"покупатель192","Заказ раз в 28 дней; \nПолучение оборотки каждый пятница; \nЧто-то каждые 30 дней; \nЕщё что-то 31 числа каждого месяца",28,"пятница",30,31," ",null,null," ",null," ",null," "]
[null," ","менеджер18",{"$f":"IF(ISERR(SEARCH($O$1,C194)),999,IF(SUMPRODUCT((E$1:E193=E194)*(D$1:D193<999))>0,999,ROW()))","v":999},"покупатель193",{"$f":"IF(G194=0,\"\",SUBSTITUTE(G$1,\"ёё\",G194)&шб)&IF(H194=0,\"\",SUBSTITUTE(H$1,\"ёё\",H194)&шб)&IF(I194=0,\"\",SUBSTITUTE(I$1,\"ёё\",I194)&шб)&IF(J194=0,\"\",SUBSTITUTE(J$1,\"ёё\",J194))","v":"Заказ раз в 7 дней; \nПолучение оборотки каждый суббота; \nЧто-то каждые 9 дней; \nЕщё что-то 10 числа каждого месяца"},7,"суббота",9,10," ",null,null," ",null," ",null," "]
[null," ","менеджер9",{"$f":"IF(ISERR(SEARCH($O$1,C195)),999,IF(SUMPRODUCT((E$1:E194=E195)*(D$1:D194<999))>0,999,ROW()))","v":999},"покупатель194","Заказ раз в 14 дней; \nПолучение оборотки каждый воскресенье; \nЧто-то каждые 16 дней; \nЕщё что-то 17 числа каждого месяца",14,{"$f":"TEXT(TODAY()+ROW(),\"ДДДД\")","v":"воскресенье"},16,17," ",null,null," ",null," ",null," "]
[null," ","менеджер6",{"$f":"IF(ISERR(SEARCH($O$1,C196)),999,IF(SUMPRODUCT((E$1:E195=E196)*(D$1:D195<999))>0,999,ROW()))","v":999},"покупатель195","Заказ раз в 21 дней; \nПолучение оборотки каждый понедельник; \nЧто-то каждые 23 дней; \nЕщё что-то 24 числа каждого месяца",21,"понедельник",23,24," ",null,null," ",null," ",null," "]
[null," ","менеджер6",{"$f":"IF(ISERR(SEARCH($O$1,C197)),999,IF(SUMPRODUCT((E$1:E196=E197)*(D$1:D196<999))>0,999,ROW()))","v":999},"покупатель196","Заказ раз в 28 дней; \nПолучение оборотки каждый вторник; \nЧто-то каждые 30 дней; \nЕщё что-то 31 числа каждого месяца",28,"вторник",30,31," ",null,null," ",null," ",null," "]
[null," ","менеджер5",{"$f":"IF(ISERR(SEARCH($O$1,C198)),999,IF(SUMPRODUCT((E$1:E197=E198)*(D$1:D197<999))>0,999,ROW()))","v":999},"покупатель197","Заказ раз в 7 дней; \nПолучение оборотки каждый среда; \nЧто-то каждые 9 дней; \nЕщё что-то 10 числа каждого месяца",7,"среда",9,10," ",null,null," ",null," ",null," "]
[null," ","менеджер8",{"$f":"IF(ISERR(SEARCH($O$1,C199)),999,IF(SUMPRODUCT((E$1:E198=E199)*(D$1:D198<999))>0,999,ROW()))","v":999},"покупатель198","Заказ раз в 14 дней; \nПолучение оборотки каждый четверг; \nЧто-то каждые 16 дней; \nЕщё что-то 17 числа каждого месяца",14,"четверг",16,17," ",null,null," ",null," ",null," "]
[null," ","менеджер7",{"$f":"IF(ISERR(SEARCH($O$1,C200)),999,IF(SUMPRODUCT((E$1:E199=E200)*(D$1:D199<999))>0,999,ROW()))","v":999},"покупатель199","Заказ раз в 21 дней; \nПолучение оборотки каждый пятница; \nЧто-то каждые 23 дней; \nЕщё что-то 24 числа каждого месяца",21,"пятница",23,24," ",null,null," ",null," ",null," "]
[null," ","менеджер3",{"$f":"IF(ISERR(SEARCH($O$1,C201)),999,IF(SUMPRODUCT((E$1:E200=E201)*(D$1:D200<999))>0,999,ROW()))","v":999},"покупатель200","Заказ раз в 28 дней; \nПолучение оборотки каждый суббота; \nЧто-то каждые 30 дней; \nЕщё что-то 31 числа каждого месяца",28,"суббота",30,31," ",null,null," ",null," ",null," "]
[null," ","менеджер5",{"$f":"IF(ISERR(SEARCH($O$1,C202)),999,IF(SUMPRODUCT((E$1:E201=E202)*(D$1:D201<999))>0,999,ROW()))","v":999},"покупатель201","Заказ раз в 7 дней; \nПолучение оборотки каждый воскресенье; \nЧто-то каждые 9 дней; \nЕщё что-то 10 числа каждого месяца",7,"воскресенье",9,10," ",null,null," ",null," ",null," "]
[null," ","менеджер7",{"$f":"IF(ISERR(SEARCH($O$1,C203)),999,IF(SUMPRODUCT((E$1:E202=E203)*(D$1:D202<999))>0,999,ROW()))","v":999},"покупатель202","Заказ раз в 14 дней; \nПолучение оборотки каждый понедельник; \nЧто-то каждые 16 дней; \nЕщё что-то 17 числа каждого месяца",14,"понедельник",16,17," ",null,null," ",null," ",null," "]
[null," ","менеджер3",{"$f":"IF(ISERR(SEARCH($O$1,C204)),999,IF(SUMPRODUCT((E$1:E203=E204)*(D$1:D203<999))>0,999,ROW()))","v":999},"покупатель203","Заказ раз в 21 дней; \nПолучение оборотки каждый вторник; \nЧто-то каждые 23 дней; \nЕщё что-то 24 числа каждого месяца",21,"вторник",23,24," ",null,null," ",null," ",null," "]
[null," ","менеджер3",{"$f":"IF(ISERR(SEARCH($O$1,C205)),999,IF(SUMPRODUCT((E$1:E204=E205)*(D$1:D204<999))>0,999,ROW()))","v":999},"покупатель204","Заказ раз в 28 дней; \nПолучение оборотки каждый среда; \nЧто-то каждые 30 дней; \nЕщё что-то 31 числа каждого месяца",28,"среда",30,31," ",null,null," ",null," ",null," "]
[null," ","менеджер3",{"$f":"IF(ISERR(SEARCH($O$1,C206)),999,IF(SUMPRODUCT((E$1:E205=E206)*(D$1:D205<999))>0,999,ROW()))","v":999},"покупатель205","Заказ раз в 7 дней; \nПолучение оборотки каждый четверг; \nЧто-то каждые 9 дней; \nЕщё что-то 10 числа каждого месяца",7,"четверг",9,10," ",null,null," ",null," ",null," "]
[null," ","менеджер7",{"$f":"IF(ISERR(SEARCH($O$1,C207)),999,IF(SUMPRODUCT((E$1:E206=E207)*(D$1:D206<999))>0,999,ROW()))","v":999},"покупатель206","Заказ раз в 14 дней; \nПолучение оборотки каждый пятница; \nЧто-то каждые 16 дней; \nЕщё что-то 17 числа каждого месяца",14,"пятница",16,17," ",null,null," ",null," ",null," "]
[null," ","менеджер2",{"$f":"IF(ISERR(SEARCH($O$1,C208)),999,IF(SUMPRODUCT((E$1:E207=E208)*(D$1:D207<999))>0,999,ROW()))","v":999},"покупатель207","Заказ раз в 21 дней; \nПолучение оборотки каждый суббота; \nЧто-то каждые 23 дней; \nЕщё что-то 24 числа каждого месяца",21,"суббота",23,24," ",null,null," ",null," ",null," "]
[null," ","менеджер1",{"$f":"IF(ISERR(SEARCH($O$1,C209)),999,IF(SUMPRODUCT((E$1:E208=E209)*(D$1:D208<999))>0,999,ROW()))","v":999},"покупатель208","Заказ раз в 28 дней; \nПолучение оборотки каждый воскресенье; \nЧто-то каждые 30 дней; \nЕщё что-то 31 числа каждого месяца",28,"воскресенье",30,31," ",null,null," ",null," ",null," "]
[null," ","менеджер5",{"$f":"IF(ISERR(SEARCH($O$1,C210)),999,IF(SUMPRODUCT((E$1:E209=E210)*(D$1:D209<999))>0,999,ROW()))","v":999},"покупатель209","Заказ раз в 7 дней; \nПолучение оборотки каждый понедельник; \nЧто-то каждые 9 дней; \nЕщё что-то 10 числа каждого месяца",7,"понедельник",9,10," ",null,null," ",null," ",null," "]
[null," ","менеджер7",{"$f":"IF(ISERR(SEARCH($O$1,C211)),999,IF(SUMPRODUCT((E$1:E210=E211)*(D$1:D210<999))>0,999,ROW()))","v":999},"покупатель210","Заказ раз в 14 дней; \nПолучение оборотки каждый вторник; \nЧто-то каждые 16 дней; \nЕщё что-то 17 числа каждого месяца",14,"вторник",16,17," ",null,null," ",null," ",null," "]
[null," ","менеджер6",{"$f":"IF(ISERR(SEARCH($O$1,C212)),999,IF(SUMPRODUCT((E$1:E211=E212)*(D$1:D211<999))>0,999,ROW()))","v":999},"покупатель211","Заказ раз в 21 дней; \nПолучение оборотки каждый среда; \nЧто-то каждые 23 дней; \nЕщё что-то 24 числа каждого месяца",21,"среда",23,24," ",null,null," ",null," ",null," "]
[null," ","менеджер13",{"$f":"IF(ISERR(SEARCH($O$1,C213)),999,IF(SUMPRODUCT((E$1:E212=E213)*(D$1:D212<999))>0,999,ROW()))","v":999},"покупатель212","Заказ раз в 28 дней; \nПолучение оборотки каждый четверг; \nЧто-то каждые 30 дней; \nЕщё что-то 31 числа каждого месяца",28,"четверг",30,31," ",null,null," ",null," ",null," "]
[null," ","менеджер6",{"$f":"IF(ISERR(SEARCH($O$1,C214)),999,IF(SUMPRODUCT((E$1:E213=E214)*(D$1:D213<999))>0,999,ROW()))","v":999},"покупатель213","Заказ раз в 7 дней; \nПолучение оборотки каждый пятница; \nЧто-то каждые 9 дней; \nЕщё что-то 10 числа каждого месяца",7,"пятница",9,10," ",null,null," ",null," ",null," "]
[null," ","менеджер7",{"$f":"IF(ISERR(SEARCH($O$1,C215)),999,IF(SUMPRODUCT((E$1:E214=E215)*(D$1:D214<999))>0,999,ROW()))","v":999},"покупатель214","Заказ раз в 14 дней; \nПолучение оборотки каждый суббота; \nЧто-то каждые 16 дней; \nЕщё что-то 17 числа каждого месяца",14,"суббота",16,17," ",null,null," ",null," ",null," "]
[null," ","менеджер6",{"$f":"IF(ISERR(SEARCH($O$1,C216)),999,IF(SUMPRODUCT((E$1:E215=E216)*(D$1:D215<999))>0,999,ROW()))","v":999},"покупатель215","Заказ раз в 21 дней; \nПолучение оборотки каждый воскресенье; \nЧто-то каждые 23 дней; \nЕщё что-то 24 числа каждого месяца",21,"воскресенье",23,24," ",null,null," ",null," ",null," "]
[null," ","менеджер6",{"$f":"IF(ISERR(SEARCH($O$1,C217)),999,IF(SUMPRODUCT((E$1:E216=E217)*(D$1:D216<999))>0,999,ROW()))","v":999},"покупатель216","Заказ раз в 28 дней; \nПолучение оборотки каждый понедельник; \nЧто-то каждые 30 дней; \nЕщё что-то 31 числа каждого месяца",28,"понедельник",30,31," ",null,null," ",null," ",null," "]